{"text_format":"1","workbook":"xlsx","n_sheets":17,"sheets":["Instrucciones","Herramienta","MGR","Resultados","D.Beta","D.Normal","D.LogNormal","D.Triangular","D.Erlang","D.Exponencial","D.Gamma","D.Pert","D.Uniforme","Hoja4","Hoja3","Indicadores","XLRisk"],"not_rendered":{"charts":1,"images":1,"macros":1,"external_links":4,"defined_names":25,"comments":1,"pivot_tables":0},"unopened":[],"bounds":{"document_bytes":16777216,"sheet_cells":100000,"rows_first":2000,"rows_last":500,"rows_between":2000,"halvings":0,"cell_chars":16384,"cell_head_chars":4096},"cells_cut":0,"cells_raw":0,"read":"whole","date_system":"1900"}

{"sheet":"Instrucciones","index":0,"n_rows":27,"n_cols":6,"rows_kept":27,"cut":false,"hidden":false,"merged":[[26,0,26,1],[26,2,26,5],[4,0,4,6],[5,1,5,6],[6,1,6,6],[7,1,7,6],[8,1,8,6],[9,1,9,6],[10,1,10,6],[11,1,11,6],[12,1,12,6],[14,0,14,6],[15,0,15,6],[16,0,16,6],[3,0,3,1],[0,0,0,6],[1,0,1,6],[20,0,20,5],[22,0,25,0]]}
["Matriz General de Riesgos (MGR)"]
["Metodología para el análisis de riesgos con enfoque multiamenaza y criterios probabilísticos en los proyectos de inversión pública"]
[]
["Instrucciones:"]
["Lea estas instrucciones cuidadosamente."]
[null,"1- Al dar clic a los botones azules ubicados en la Hoja \"Herramienta\" se desplegaran las pestañas que deben ser completadas para estimar el Costo Total Esperado."]
[null,"2- En la pestaña MGR se debe completar toda la información solicitada. En caso de requerir líneas adicionales se debe dar clic en el botón Agregar Filas ubicado en la parte superior derecha. Las celdas bloqueadas se calculan de forma automática."]
[null,"3- Las pestaña Indicadores contiene los insumos necesarios para completar las columnas de Tipo de Riesgo, Nivel de Impacto y Probabilidad de Ocurrencia de la MGR permitidos para la etapa de perfil. "]
[null,"4- En la Hoja MGR, para realizar la simulación de Montecarlo y obtener el Costo Total Esperado, se debe dar clic en el botón Calcular Costo Esperado. De esta manera Excel realizará el cálculo de manera automática y se abrirá una nueva Hoja llamada Resultados."]
[null,"5. Cuando se requiera realizar la evaluación económica-social se deberá ajustar el valor del Costo Base en la matriz MGR o en las hojas de distribuciones que corresponda, utilizando precios sociales y volver a estimar el Costo Total Esperado dando clic en el botón \"Calcular Costo Esperado\"."]
[null,"6- Si el análsis del proyecto corresponde a la etapa de prefactibilidad o factibilidad, se deberá completar la información de la Hoja MGR y adicionalmente se deberá incluir la información de cada riesgo según el tipo de distribución de los datos seleccionados por el experto. Para esto, se deberá seleccionar la distribución en los botones ubicados en la Hoja Herramienta. Las distribuciones disponibles son: Beta, Normal, Lognormal, Triangular, Erlang, Exponencial, Gamma, Pert y Uniforme. Cada una de las Hojas cuenta con los parámetros necesarios para el cálculo así como la respectiva función para su cálculo automático. En el caso de la distribución triangular se debe completar su hoja respectiva, no se podrán utilizar los resultados del cálculo del costo esperado de la hoja MGR ya que estos se eliminaran al incluir datos en cualquier otra Hoja."]
[null,"7- Una vez que se incluyan los datos en las distintas distribuciones se deberá dar clic en el botón \"Calcular Costo Esperado\" ubicado en cualquiera de las Hojas de distribución de probabilidad o en la Hoja MGR."]
[null,"8- Este botón  \"Calcular Costo Esperado\"  calculará dicho valor para lo cual tomará en cuenta los valores de la Hoja MGR, siempre y cuando no existan datos en otras Hojas del libro. En caso de que se ingresen datos en las Hojas de las distribuciones, el cálculo se realizará tomando en cuenta los valores de las hojas que tengan datos y no se tomarán en cuenta los valores de la Hoja MGR, ni de aquellas hojas que no contengan datos. Esto es así para evitar una doble contabilización. Cada vez que se dé clic a este botón se generará una nueva simulación con nuevos resultados. "]
["Nota"]
["* En la Hoja MGR, se asumirá como supuestos que todos los riesgos tienen una distribución triangular con desviación igual a +-25% para calcular el máximo y el mínimo. Este cálculo únicamente será válido a nivel de perfil y se realiza de manera automática en esta Hoja."]
["* El valor de la media del Costo Total Esperado de la simulación en MGR,será el valor que se debe trasladar al análisis financiero del proyecto."]
["* Además de la Hoja Resultados se desplegará una hoja denominada XLRisk Results1 que corresponde a los resultados de las simulaciones de cada riesgo. Estas hojas se crearán cada vez que se dé clic en el botón \"Calcular Costo Esperado\". Las mismas pueden ser eliminadas si el usuario lo desea, sin embargo, los resultados que se muestran en la Hoja Resultados serán reemplazados cada vez que se haga una simulación, por lo que el único registro de simulaciones anteriores serán estas Hojas."]
[]
[]
[]
["Metodología para el Análisis de Riesgos con enfoque multiamenaza y criterios probabilísticos en los proyectos de inversión Pública"]
["Versión","Tarea","Responsable","Institución","Descripción del cambio","Fecha"]
["N° 01","Elaboración","Jason Rivera Ugarte ","Ministerio de Planificación Nacional y Política Económica.","Elaboración primera versión","2022-05-26"]
[null,"Elaboración","Melisa Oviedo Alfaro","Ministerio de Hacienda, DCP-UAPP","Elaboración primera versión","2022-05-26"]
[null,"Revisión","Walter Ledezma Rojas ","Ministerio de Hacienda, DCP-UAPP","Revisión primera versión"]
[null,"Revisión","Johanna Salas Jiménez","Ministerio de Planificación Nacional y Política Económica.","Revisión primera versión"]
["Versión final:",null,"Insertar fecha…………….."]

{"sheet":"Herramienta","index":1,"n_rows":4,"n_cols":2,"rows_kept":4,"cut":false,"hidden":false,"merged":[[2,1,2,13],[3,1,3,13]]}
[]
[]
[null,"Matriz General de Riesgos (MGR)"]
[null,"Metodología para el análisis de riesgos con enfoque multiamenaza y criterios probabilísticos en los proyectos de inversión pública"]

{"sheet":"MGR","index":2,"n_rows":31,"n_cols":18,"rows_kept":31,"cut":false,"hidden":false,"merged":[[0,2,0,5],[3,1,3,7],[3,8,3,12],[3,13,3,17],[1,2,1,3],[2,2,2,3]]}
[null,"Nombre del proyecto:"]
[null,"Sector:"]
[null,"Institución:"]
[".","Identificación",null,null,null,null,null,null,"Cuantificación",null,null,null,null,"Valoración"]
["ID","Riesgo","Descripción","Causa","Tipo de Riesgos","Etapa","Asignación","Medidas de mitigación","Incidencia","Nivel de impacto","Probabilidad de ocurrencia","Probabilidad conjunta","Clasificación","Costo base","Costo de impacto","Costo afectado","Tipo de distribución","Costo esperado"]
[1,null,null,null,null,null,null,null,null,null,null,{"$f":"K6*J6","v":0},{"$f":"IF(L6=0,\"ND\",IF(L6>=Hoja4!$C$21,Hoja4!$B$21,IF(L6>=Hoja4!$C$22,Hoja4!$B$22,IF(MGR!L6>=Hoja4!$C$23,Hoja4!$B$23,IF(MGR!L6>=Hoja4!$C$24,Hoja4!$B$24,Hoja4!$B$25)))))","v":"ND"},null,{"$f":"I6*N6","v":0},{"$f":"O6*L6","v":0},"Triangular",{"$f":"IF((OR(SUM(Tabla12[Costo Esperado])>0,SUM(Tabla2[Costo Esperado])>0,SUM(Tabla25[Costo Esperado])>0,SUM(Tabla24[Costo Esperado])>0,SUM(Tabla246[Costo Esperado])>0,SUM(Tabla2467[Costo Esperado])>0,SUM(Tabla248[Costo Esperado])>0,SUM(Tabla249[Costo Esperado])>0,SUM(Tabla24910[Costo Esperado])>0)),\"ELIMINAR\",IF(P6>0,[4]!RiskTriang(P6*0.75,P6,P6*1.25),\"ELIMINAR\"))","v":"ELIMINAR"}]
[2,null,null,null,null,null,null,null,null,null,null,{"$f":"K7*J7","v":0},{"$f":"IF(L7=0,\"ND\",IF(L7>=Hoja4!$C$21,Hoja4!$B$21,IF(L7>=Hoja4!$C$22,Hoja4!$B$22,IF(MGR!L7>=Hoja4!$C$23,Hoja4!$B$23,IF(MGR!L7>=Hoja4!$C$24,Hoja4!$B$24,Hoja4!$B$25)))))","v":"ND"},null,{"$f":"I7*N7","v":0},0,"Triangular",{"$f":"IF((OR(SUM(Tabla12[Costo Esperado])>0,SUM(Tabla2[Costo Esperado])>0,SUM(Tabla25[Costo Esperado])>0,SUM(Tabla24[Costo Esperado])>0,SUM(Tabla246[Costo Esperado])>0,SUM(Tabla2467[Costo Esperado])>0,SUM(Tabla248[Costo Esperado])>0,SUM(Tabla249[Costo Esperado])>0,SUM(Tabla24910[Costo Esperado])>0)),\"ELIMINAR\",IF(P7>0,[4]!RiskTriang(P7*0.75,P7,P7*1.25),\"ELIMINAR\"))","v":"ELIMINAR"}]
[3,null,null,null,null,null,null,null,null,null,null,0,{"$f":"IF(L8=0,\"ND\",IF(L8>=Hoja4!$C$21,Hoja4!$B$21,IF(L8>=Hoja4!$C$22,Hoja4!$B$22,IF(MGR!L8>=Hoja4!$C$23,Hoja4!$B$23,IF(MGR!L8>=Hoja4!$C$24,Hoja4!$B$24,Hoja4!$B$25)))))","v":"ND"},null,0,0,"Triangular",{"$f":"IF((OR(SUM(Tabla12[Costo Esperado])>0,SUM(Tabla2[Costo Esperado])>0,SUM(Tabla25[Costo Esperado])>0,SUM(Tabla24[Costo Esperado])>0,SUM(Tabla246[Costo Esperado])>0,SUM(Tabla2467[Costo Esperado])>0,SUM(Tabla248[Costo Esperado])>0,SUM(Tabla249[Costo Esperado])>0,SUM(Tabla24910[Costo Esperado])>0)),\"ELIMINAR\",IF(P8>0,[4]!RiskTriang(P8*0.75,P8,P8*1.25),\"ELIMINAR\"))","v":"ELIMINAR"}]
[4,null,null,null,null,null,null,null,null,null,null,0,{"$f":"IF(L9=0,\"ND\",IF(L9>=Hoja4!$C$21,Hoja4!$B$21,IF(L9>=Hoja4!$C$22,Hoja4!$B$22,IF(MGR!L9>=Hoja4!$C$23,Hoja4!$B$23,IF(MGR!L9>=Hoja4!$C$24,Hoja4!$B$24,Hoja4!$B$25)))))","v":"ND"},null,0,0,"Triangular",{"$f":"IF((OR(SUM(Tabla12[Costo Esperado])>0,SUM(Tabla2[Costo Esperado])>0,SUM(Tabla25[Costo Esperado])>0,SUM(Tabla24[Costo Esperado])>0,SUM(Tabla246[Costo Esperado])>0,SUM(Tabla2467[Costo Esperado])>0,SUM(Tabla248[Costo Esperado])>0,SUM(Tabla249[Costo Esperado])>0,SUM(Tabla24910[Costo Esperado])>0)),\"ELIMINAR\",IF(P9>0,[4]!RiskTriang(P9*0.75,P9,P9*1.25),\"ELIMINAR\"))","v":"ELIMINAR"}]
[5,null,null,null,null,null,null,null,null,null,null,0,{"$f":"IF(L10=0,\"ND\",IF(L10>=Hoja4!$C$21,Hoja4!$B$21,IF(L10>=Hoja4!$C$22,Hoja4!$B$22,IF(MGR!L10>=Hoja4!$C$23,Hoja4!$B$23,IF(MGR!L10>=Hoja4!$C$24,Hoja4!$B$24,Hoja4!$B$25)))))","v":"ND"},null,0,0,"Triangular",{"$f":"IF((OR(SUM(Tabla12[Costo Esperado])>0,SUM(Tabla2[Costo Esperado])>0,SUM(Tabla25[Costo Esperado])>0,SUM(Tabla24[Costo Esperado])>0,SUM(Tabla246[Costo Esperado])>0,SUM(Tabla2467[Costo Esperado])>0,SUM(Tabla248[Costo Esperado])>0,SUM(Tabla249[Costo Esperado])>0,SUM(Tabla24910[Costo Esperado])>0)),\"ELIMINAR\",IF(P10>0,[4]!RiskTriang(P10*0.75,P10,P10*1.25),\"ELIMINAR\"))","v":"ELIMINAR"}]
[6,null,null,null,null,null,null,null,null,null,null,0,{"$f":"IF(L11=0,\"ND\",IF(L11>=Hoja4!$C$21,Hoja4!$B$21,IF(L11>=Hoja4!$C$22,Hoja4!$B$22,IF(MGR!L11>=Hoja4!$C$23,Hoja4!$B$23,IF(MGR!L11>=Hoja4!$C$24,Hoja4!$B$24,Hoja4!$B$25)))))","v":"ND"},null,0,0,"Triangular",{"$f":"IF((OR(SUM(Tabla12[Costo Esperado])>0,SUM(Tabla2[Costo Esperado])>0,SUM(Tabla25[Costo Esperado])>0,SUM(Tabla24[Costo Esperado])>0,SUM(Tabla246[Costo Esperado])>0,SUM(Tabla2467[Costo Esperado])>0,SUM(Tabla248[Costo Esperado])>0,SUM(Tabla249[Costo Esperado])>0,SUM(Tabla24910[Costo Esperado])>0)),\"ELIMINAR\",IF(P11>0,[4]!RiskTriang(P11*0.75,P11,P11*1.25),\"ELIMINAR\"))","v":"ELIMINAR"}]
[7,null,null,null,null,null,null,null,null,null,null,0,{"$f":"IF(L12=0,\"ND\",IF(L12>=Hoja4!$C$21,Hoja4!$B$21,IF(L12>=Hoja4!$C$22,Hoja4!$B$22,IF(MGR!L12>=Hoja4!$C$23,Hoja4!$B$23,IF(MGR!L12>=Hoja4!$C$24,Hoja4!$B$24,Hoja4!$B$25)))))","v":"ND"},null,0,0,"Triangular",{"$f":"IF((OR(SUM(Tabla12[Costo Esperado])>0,SUM(Tabla2[Costo Esperado])>0,SUM(Tabla25[Costo Esperado])>0,SUM(Tabla24[Costo Esperado])>0,SUM(Tabla246[Costo Esperado])>0,SUM(Tabla2467[Costo Esperado])>0,SUM(Tabla248[Costo Esperado])>0,SUM(Tabla249[Costo Esperado])>0,SUM(Tabla24910[Costo Esperado])>0)),\"ELIMINAR\",IF(P12>0,[4]!RiskTriang(P12*0.75,P12,P12*1.25),\"ELIMINAR\"))","v":"ELIMINAR"}]
[8,null,null,null,null,null,null,null,null,null,null,0,{"$f":"IF(L13=0,\"ND\",IF(L13>=Hoja4!$C$21,Hoja4!$B$21,IF(L13>=Hoja4!$C$22,Hoja4!$B$22,IF(MGR!L13>=Hoja4!$C$23,Hoja4!$B$23,IF(MGR!L13>=Hoja4!$C$24,Hoja4!$B$24,Hoja4!$B$25)))))","v":"ND"},null,0,0,"Triangular",{"$f":"IF((OR(SUM(Tabla12[Costo Esperado])>0,SUM(Tabla2[Costo Esperado])>0,SUM(Tabla25[Costo Esperado])>0,SUM(Tabla24[Costo Esperado])>0,SUM(Tabla246[Costo Esperado])>0,SUM(Tabla2467[Costo Esperado])>0,SUM(Tabla248[Costo Esperado])>0,SUM(Tabla249[Costo Esperado])>0,SUM(Tabla24910[Costo Esperado])>0)),\"ELIMINAR\",IF(P13>0,[4]!RiskTriang(P13*0.75,P13,P13*1.25),\"ELIMINAR\"))","v":"ELIMINAR"}]
[9,null,null,null,null,null,null,null,null,null,null,0,{"$f":"IF(L14=0,\"ND\",IF(L14>=Hoja4!$C$21,Hoja4!$B$21,IF(L14>=Hoja4!$C$22,Hoja4!$B$22,IF(MGR!L14>=Hoja4!$C$23,Hoja4!$B$23,IF(MGR!L14>=Hoja4!$C$24,Hoja4!$B$24,Hoja4!$B$25)))))","v":"ND"},null,0,0,"Triangular",{"$f":"IF((OR(SUM(Tabla12[Costo Esperado])>0,SUM(Tabla2[Costo Esperado])>0,SUM(Tabla25[Costo Esperado])>0,SUM(Tabla24[Costo Esperado])>0,SUM(Tabla246[Costo Esperado])>0,SUM(Tabla2467[Costo Esperado])>0,SUM(Tabla248[Costo Esperado])>0,SUM(Tabla249[Costo Esperado])>0,SUM(Tabla24910[Costo Esperado])>0)),\"ELIMINAR\",IF(P14>0,[4]!RiskTriang(P14*0.75,P14,P14*1.25),\"ELIMINAR\"))","v":"ELIMINAR"}]
[10,null,null,null,null,null,null,null,null,null,null,0,{"$f":"IF(L15=0,\"ND\",IF(L15>=Hoja4!$C$21,Hoja4!$B$21,IF(L15>=Hoja4!$C$22,Hoja4!$B$22,IF(MGR!L15>=Hoja4!$C$23,Hoja4!$B$23,IF(MGR!L15>=Hoja4!$C$24,Hoja4!$B$24,Hoja4!$B$25)))))","v":"ND"},null,0,0,"Triangular",{"$f":"IF((OR(SUM(Tabla12[Costo Esperado])>0,SUM(Tabla2[Costo Esperado])>0,SUM(Tabla25[Costo Esperado])>0,SUM(Tabla24[Costo Esperado])>0,SUM(Tabla246[Costo Esperado])>0,SUM(Tabla2467[Costo Esperado])>0,SUM(Tabla248[Costo Esperado])>0,SUM(Tabla249[Costo Esperado])>0,SUM(Tabla24910[Costo Esperado])>0)),\"ELIMINAR\",IF(P15>0,[4]!RiskTriang(P15*0.75,P15,P15*1.25),\"ELIMINAR\"))","v":"ELIMINAR"}]
[11,null,null,null,null,null,null,null,null,null,null,0,{"$f":"IF(L16=0,\"ND\",IF(L16>=Hoja4!$C$21,Hoja4!$B$21,IF(L16>=Hoja4!$C$22,Hoja4!$B$22,IF(MGR!L16>=Hoja4!$C$23,Hoja4!$B$23,IF(MGR!L16>=Hoja4!$C$24,Hoja4!$B$24,Hoja4!$B$25)))))","v":"ND"},null,0,0,"Triangular",{"$f":"IF((OR(SUM(Tabla12[Costo Esperado])>0,SUM(Tabla2[Costo Esperado])>0,SUM(Tabla25[Costo Esperado])>0,SUM(Tabla24[Costo Esperado])>0,SUM(Tabla246[Costo Esperado])>0,SUM(Tabla2467[Costo Esperado])>0,SUM(Tabla248[Costo Esperado])>0,SUM(Tabla249[Costo Esperado])>0,SUM(Tabla24910[Costo Esperado])>0)),\"ELIMINAR\",IF(P16>0,[4]!RiskTriang(P16*0.75,P16,P16*1.25),\"ELIMINAR\"))","v":"ELIMINAR"}]
[12,null,null,null,null,null,null,null,null,null,null,0,{"$f":"IF(L17=0,\"ND\",IF(L17>=Hoja4!$C$21,Hoja4!$B$21,IF(L17>=Hoja4!$C$22,Hoja4!$B$22,IF(MGR!L17>=Hoja4!$C$23,Hoja4!$B$23,IF(MGR!L17>=Hoja4!$C$24,Hoja4!$B$24,Hoja4!$B$25)))))","v":"ND"},null,0,0,"Triangular",{"$f":"IF((OR(SUM(Tabla12[Costo Esperado])>0,SUM(Tabla2[Costo Esperado])>0,SUM(Tabla25[Costo Esperado])>0,SUM(Tabla24[Costo Esperado])>0,SUM(Tabla246[Costo Esperado])>0,SUM(Tabla2467[Costo Esperado])>0,SUM(Tabla248[Costo Esperado])>0,SUM(Tabla249[Costo Esperado])>0,SUM(Tabla24910[Costo Esperado])>0)),\"ELIMINAR\",IF(P17>0,[4]!RiskTriang(P17*0.75,P17,P17*1.25),\"ELIMINAR\"))","v":"ELIMINAR"}]
[13,null,null,null,null,null,null,null,null,null,null,0,{"$f":"IF(L18=0,\"ND\",IF(L18>=Hoja4!$C$21,Hoja4!$B$21,IF(L18>=Hoja4!$C$22,Hoja4!$B$22,IF(MGR!L18>=Hoja4!$C$23,Hoja4!$B$23,IF(MGR!L18>=Hoja4!$C$24,Hoja4!$B$24,Hoja4!$B$25)))))","v":"ND"},null,0,0,"Triangular",{"$f":"IF((OR(SUM(Tabla12[Costo Esperado])>0,SUM(Tabla2[Costo Esperado])>0,SUM(Tabla25[Costo Esperado])>0,SUM(Tabla24[Costo Esperado])>0,SUM(Tabla246[Costo Esperado])>0,SUM(Tabla2467[Costo Esperado])>0,SUM(Tabla248[Costo Esperado])>0,SUM(Tabla249[Costo Esperado])>0,SUM(Tabla24910[Costo Esperado])>0)),\"ELIMINAR\",IF(P18>0,[4]!RiskTriang(P18*0.75,P18,P18*1.25),\"ELIMINAR\"))","v":"ELIMINAR"}]
[14,null,null,null,null,null,null,null,null,null,null,0,{"$f":"IF(L19=0,\"ND\",IF(L19>=Hoja4!$C$21,Hoja4!$B$21,IF(L19>=Hoja4!$C$22,Hoja4!$B$22,IF(MGR!L19>=Hoja4!$C$23,Hoja4!$B$23,IF(MGR!L19>=Hoja4!$C$24,Hoja4!$B$24,Hoja4!$B$25)))))","v":"ND"},null,0,0,"Triangular",{"$f":"IF((OR(SUM(Tabla12[Costo Esperado])>0,SUM(Tabla2[Costo Esperado])>0,SUM(Tabla25[Costo Esperado])>0,SUM(Tabla24[Costo Esperado])>0,SUM(Tabla246[Costo Esperado])>0,SUM(Tabla2467[Costo Esperado])>0,SUM(Tabla248[Costo Esperado])>0,SUM(Tabla249[Costo Esperado])>0,SUM(Tabla24910[Costo Esperado])>0)),\"ELIMINAR\",IF(P19>0,[4]!RiskTriang(P19*0.75,P19,P19*1.25),\"ELIMINAR\"))","v":"ELIMINAR"}]
[15,null,null,null,null,null,null,null,null,null,null,0,{"$f":"IF(L20=0,\"ND\",IF(L20>=Hoja4!$C$21,Hoja4!$B$21,IF(L20>=Hoja4!$C$22,Hoja4!$B$22,IF(MGR!L20>=Hoja4!$C$23,Hoja4!$B$23,IF(MGR!L20>=Hoja4!$C$24,Hoja4!$B$24,Hoja4!$B$25)))))","v":"ND"},null,0,0,"Triangular",{"$f":"IF((OR(SUM(Tabla12[Costo Esperado])>0,SUM(Tabla2[Costo Esperado])>0,SUM(Tabla25[Costo Esperado])>0,SUM(Tabla24[Costo Esperado])>0,SUM(Tabla246[Costo Esperado])>0,SUM(Tabla2467[Costo Esperado])>0,SUM(Tabla248[Costo Esperado])>0,SUM(Tabla249[Costo Esperado])>0,SUM(Tabla24910[Costo Esperado])>0)),\"ELIMINAR\",IF(P20>0,[4]!RiskTriang(P20*0.75,P20,P20*1.25),\"ELIMINAR\"))","v":"ELIMINAR"}]
[16,null,null,null,null,null,null,null,null,null,null,0,{"$f":"IF(L21=0,\"ND\",IF(L21>=Hoja4!$C$21,Hoja4!$B$21,IF(L21>=Hoja4!$C$22,Hoja4!$B$22,IF(MGR!L21>=Hoja4!$C$23,Hoja4!$B$23,IF(MGR!L21>=Hoja4!$C$24,Hoja4!$B$24,Hoja4!$B$25)))))","v":"ND"},null,0,0,"Triangular",{"$f":"IF((OR(SUM(Tabla12[Costo Esperado])>0,SUM(Tabla2[Costo Esperado])>0,SUM(Tabla25[Costo Esperado])>0,SUM(Tabla24[Costo Esperado])>0,SUM(Tabla246[Costo Esperado])>0,SUM(Tabla2467[Costo Esperado])>0,SUM(Tabla248[Costo Esperado])>0,SUM(Tabla249[Costo Esperado])>0,SUM(Tabla24910[Costo Esperado])>0)),\"ELIMINAR\",IF(P21>0,[4]!RiskTriang(P21*0.75,P21,P21*1.25),\"ELIMINAR\"))","v":"ELIMINAR"}]
[17,null,null,null,null,null,null,null,null,null,null,0,{"$f":"IF(L22=0,\"ND\",IF(L22>=Hoja4!$C$21,Hoja4!$B$21,IF(L22>=Hoja4!$C$22,Hoja4!$B$22,IF(MGR!L22>=Hoja4!$C$23,Hoja4!$B$23,IF(MGR!L22>=Hoja4!$C$24,Hoja4!$B$24,Hoja4!$B$25)))))","v":"ND"},null,0,0,"Triangular",{"$f":"IF((OR(SUM(Tabla12[Costo Esperado])>0,SUM(Tabla2[Costo Esperado])>0,SUM(Tabla25[Costo Esperado])>0,SUM(Tabla24[Costo Esperado])>0,SUM(Tabla246[Costo Esperado])>0,SUM(Tabla2467[Costo Esperado])>0,SUM(Tabla248[Costo Esperado])>0,SUM(Tabla249[Costo Esperado])>0,SUM(Tabla24910[Costo Esperado])>0)),\"ELIMINAR\",IF(P22>0,[4]!RiskTriang(P22*0.75,P22,P22*1.25),\"ELIMINAR\"))","v":"ELIMINAR"}]
[18,null,null,null,null,null,null,null,null,null,null,0,{"$f":"IF(L23=0,\"ND\",IF(L23>=Hoja4!$C$21,Hoja4!$B$21,IF(L23>=Hoja4!$C$22,Hoja4!$B$22,IF(MGR!L23>=Hoja4!$C$23,Hoja4!$B$23,IF(MGR!L23>=Hoja4!$C$24,Hoja4!$B$24,Hoja4!$B$25)))))","v":"ND"},null,0,0,"Triangular",{"$f":"IF((OR(SUM(Tabla12[Costo Esperado])>0,SUM(Tabla2[Costo Esperado])>0,SUM(Tabla25[Costo Esperado])>0,SUM(Tabla24[Costo Esperado])>0,SUM(Tabla246[Costo Esperado])>0,SUM(Tabla2467[Costo Esperado])>0,SUM(Tabla248[Costo Esperado])>0,SUM(Tabla249[Costo Esperado])>0,SUM(Tabla24910[Costo Esperado])>0)),\"ELIMINAR\",IF(P23>0,[4]!RiskTriang(P23*0.75,P23,P23*1.25),\"ELIMINAR\"))","v":"ELIMINAR"}]
[19,null,null,null,null,null,null,null,null,null,null,0,{"$f":"IF(L24=0,\"ND\",IF(L24>=Hoja4!$C$21,Hoja4!$B$21,IF(L24>=Hoja4!$C$22,Hoja4!$B$22,IF(MGR!L24>=Hoja4!$C$23,Hoja4!$B$23,IF(MGR!L24>=Hoja4!$C$24,Hoja4!$B$24,Hoja4!$B$25)))))","v":"ND"},null,0,0,"Triangular",{"$f":"IF((OR(SUM(Tabla12[Costo Esperado])>0,SUM(Tabla2[Costo Esperado])>0,SUM(Tabla25[Costo Esperado])>0,SUM(Tabla24[Costo Esperado])>0,SUM(Tabla246[Costo Esperado])>0,SUM(Tabla2467[Costo Esperado])>0,SUM(Tabla248[Costo Esperado])>0,SUM(Tabla249[Costo Esperado])>0,SUM(Tabla24910[Costo Esperado])>0)),\"ELIMINAR\",IF(P24>0,[4]!RiskTriang(P24*0.75,P24,P24*1.25),\"ELIMINAR\"))","v":"ELIMINAR"}]
[20,null,null,null,null,null,null,null,null,null,null,0,{"$f":"IF(L25=0,\"ND\",IF(L25>=Hoja4!$C$21,Hoja4!$B$21,IF(L25>=Hoja4!$C$22,Hoja4!$B$22,IF(MGR!L25>=Hoja4!$C$23,Hoja4!$B$23,IF(MGR!L25>=Hoja4!$C$24,Hoja4!$B$24,Hoja4!$B$25)))))","v":"ND"},null,0,0,"Triangular",{"$f":"IF((OR(SUM(Tabla12[Costo Esperado])>0,SUM(Tabla2[Costo Esperado])>0,SUM(Tabla25[Costo Esperado])>0,SUM(Tabla24[Costo Esperado])>0,SUM(Tabla246[Costo Esperado])>0,SUM(Tabla2467[Costo Esperado])>0,SUM(Tabla248[Costo Esperado])>0,SUM(Tabla249[Costo Esperado])>0,SUM(Tabla24910[Costo Esperado])>0)),\"ELIMINAR\",IF(P25>0,[4]!RiskTriang(P25*0.75,P25,P25*1.25),\"ELIMINAR\"))","v":"ELIMINAR"}]
[21,null,null,null,null,null,null,null,null,null,null,0,{"$f":"IF(L26=0,\"ND\",IF(L26>=Hoja4!$C$21,Hoja4!$B$21,IF(L26>=Hoja4!$C$22,Hoja4!$B$22,IF(MGR!L26>=Hoja4!$C$23,Hoja4!$B$23,IF(MGR!L26>=Hoja4!$C$24,Hoja4!$B$24,Hoja4!$B$25)))))","v":"ND"},null,0,0,"Triangular",{"$f":"IF((OR(SUM(Tabla12[Costo Esperado])>0,SUM(Tabla2[Costo Esperado])>0,SUM(Tabla25[Costo Esperado])>0,SUM(Tabla24[Costo Esperado])>0,SUM(Tabla246[Costo Esperado])>0,SUM(Tabla2467[Costo Esperado])>0,SUM(Tabla248[Costo Esperado])>0,SUM(Tabla249[Costo Esperado])>0,SUM(Tabla24910[Costo Esperado])>0)),\"ELIMINAR\",IF(P26>0,[4]!RiskTriang(P26*0.75,P26,P26*1.25),\"ELIMINAR\"))","v":"ELIMINAR"}]
[22,null,null,null,null,null,null,null,null,null,null,0,{"$f":"IF(L27=0,\"ND\",IF(L27>=Hoja4!$C$21,Hoja4!$B$21,IF(L27>=Hoja4!$C$22,Hoja4!$B$22,IF(MGR!L27>=Hoja4!$C$23,Hoja4!$B$23,IF(MGR!L27>=Hoja4!$C$24,Hoja4!$B$24,Hoja4!$B$25)))))","v":"ND"},null,0,0,"Triangular",{"$f":"IF((OR(SUM(Tabla12[Costo Esperado])>0,SUM(Tabla2[Costo Esperado])>0,SUM(Tabla25[Costo Esperado])>0,SUM(Tabla24[Costo Esperado])>0,SUM(Tabla246[Costo Esperado])>0,SUM(Tabla2467[Costo Esperado])>0,SUM(Tabla248[Costo Esperado])>0,SUM(Tabla249[Costo Esperado])>0,SUM(Tabla24910[Costo Esperado])>0)),\"ELIMINAR\",IF(P27>0,[4]!RiskTriang(P27*0.75,P27,P27*1.25),\"ELIMINAR\"))","v":"ELIMINAR"}]
[23,null,null,null,null,null,null,null,null,null,null,0,{"$f":"IF(L28=0,\"ND\",IF(L28>=Hoja4!$C$21,Hoja4!$B$21,IF(L28>=Hoja4!$C$22,Hoja4!$B$22,IF(MGR!L28>=Hoja4!$C$23,Hoja4!$B$23,IF(MGR!L28>=Hoja4!$C$24,Hoja4!$B$24,Hoja4!$B$25)))))","v":"ND"},null,0,0,"Triangular",{"$f":"IF((OR(SUM(Tabla12[Costo Esperado])>0,SUM(Tabla2[Costo Esperado])>0,SUM(Tabla25[Costo Esperado])>0,SUM(Tabla24[Costo Esperado])>0,SUM(Tabla246[Costo Esperado])>0,SUM(Tabla2467[Costo Esperado])>0,SUM(Tabla248[Costo Esperado])>0,SUM(Tabla249[Costo Esperado])>0,SUM(Tabla24910[Costo Esperado])>0)),\"ELIMINAR\",IF(P28>0,[4]!RiskTriang(P28*0.75,P28,P28*1.25),\"ELIMINAR\"))","v":"ELIMINAR"}]
[24,null,null,null,null,null,null,null,null,null,null,0,{"$f":"IF(L29=0,\"ND\",IF(L29>=Hoja4!$C$21,Hoja4!$B$21,IF(L29>=Hoja4!$C$22,Hoja4!$B$22,IF(MGR!L29>=Hoja4!$C$23,Hoja4!$B$23,IF(MGR!L29>=Hoja4!$C$24,Hoja4!$B$24,Hoja4!$B$25)))))","v":"ND"},null,0,0,"Triangular",{"$f":"IF((OR(SUM(Tabla12[Costo Esperado])>0,SUM(Tabla2[Costo Esperado])>0,SUM(Tabla25[Costo Esperado])>0,SUM(Tabla24[Costo Esperado])>0,SUM(Tabla246[Costo Esperado])>0,SUM(Tabla2467[Costo Esperado])>0,SUM(Tabla248[Costo Esperado])>0,SUM(Tabla249[Costo Esperado])>0,SUM(Tabla24910[Costo Esperado])>0)),\"ELIMINAR\",IF(P29>0,[4]!RiskTriang(P29*0.75,P29,P29*1.25),\"ELIMINAR\"))","v":"ELIMINAR"}]
[25,null,null,null,null,null,null,null,null,null,null,0,{"$f":"IF(L30=0,\"ND\",IF(L30>=Hoja4!$C$21,Hoja4!$B$21,IF(L30>=Hoja4!$C$22,Hoja4!$B$22,IF(MGR!L30>=Hoja4!$C$23,Hoja4!$B$23,IF(MGR!L30>=Hoja4!$C$24,Hoja4!$B$24,Hoja4!$B$25)))))","v":"ND"},null,0,0,"Triangular",{"$f":"IF((OR(SUM(Tabla12[Costo Esperado])>0,SUM(Tabla2[Costo Esperado])>0,SUM(Tabla25[Costo Esperado])>0,SUM(Tabla24[Costo Esperado])>0,SUM(Tabla246[Costo Esperado])>0,SUM(Tabla2467[Costo Esperado])>0,SUM(Tabla248[Costo Esperado])>0,SUM(Tabla249[Costo Esperado])>0,SUM(Tabla24910[Costo Esperado])>0)),\"ELIMINAR\",IF(P30>0,[4]!RiskTriang(P30*0.75,P30,P30*1.25),\"ELIMINAR\"))","v":"ELIMINAR"}]
[null,null,null,null,null,null,null,null,null,null,null,null,null,null,null,null,null,{"$f":"SUM(R6:R30)","v":0}]

{"sheet":"Resultados","index":3,"n_rows":25,"n_cols":8,"rows_kept":25,"cut":false,"hidden":true,"merged":[[18,6,18,7],[1,2,1,3],[0,2,0,6]]}
[null,null,{"$f":"IF(MGR!C1=\"\",\"INLCUIR NOMBRE EN MGR\",MGR!C1)","v":"INLCUIR NOMBRE EN MGR"}]
[null,null,"Calculo de Costo Esperado Total"]
[null,null,"Variable","Valores"]
[null,null,"Costo Total Esperado Total antes de la Simulación",{"$f":"IF((OR(SUM(Tabla2[Costo Esperado])>0,SUM(Tabla12[Costo Esperado])>0,SUM(Tabla25[Costo Esperado])>0,SUM(Tabla24[Costo Esperado])>0,SUM(Tabla246[Costo Esperado])>0,SUM(Tabla2467[Costo Esperado])>0,SUM(Tabla248[Costo Esperado])>0,SUM(Tabla249[Costo Esperado])>0,SUM(Tabla24910[Costo Esperado])>0)),SUM(Tabla2[Costo Esperado])+SUM(Tabla12[Costo Esperado])+SUM(Tabla25[Costo Esperado])+SUM(Tabla24[Costo Esperado])+SUM(Tabla246[Costo Esperado])+SUM(Tabla2467[Costo Esperado])+SUM(Tabla248[Costo Esperado])+SUM(Tabla249[Costo Esperado])+SUM(Tabla24910[Costo Esperado]),SUM(SumaCostoEsperado)/2)","v":0}]
[null,null,"Costo Total Esperado Total después de la simulación"]
[null,null,"Valor Mínimo del Costo Total Esperado Simulado"]
[null,null,"Valor Máximo del Costo Total Esperado Simulado"]
[]
[]
[]
[]
[]
[]
[]
[null,null,null,null,null,null,"Riesgos Totales",{"$f":"SUM(Tabla11[Cantidad])","v":0}]
[]
[]
[]
[null,null,null,null,null,null,"Cantidad de Eventos Riesgos según Categoría"]
[null,null,null,null,null,null,"Categoría","Cantidad"]
[null,null,null,null,null,null,"Muy alto",{"$f":"COUNTIF(clasificacion,Hoja4!$B21)","v":0}]
[null,null,null,null,null,null,"Alto",{"$f":"COUNTIF(clasificacion,Hoja4!$B22)","v":0}]
[null,null,null,null,null,null,"Medio",{"$f":"COUNTIF(clasificacion,Hoja4!$B23)","v":0}]
[null,null,null,null,null,null,"Bajo",{"$f":"COUNTIF(clasificacion,Hoja4!$B24)","v":0}]
[null,null,null,null,null,null,"Muy bajo",{"$f":"COUNTIF(clasificacion,Hoja4!$B25)","v":0}]

{"sheet":"D.Beta","index":4,"n_rows":21,"n_cols":7,"rows_kept":21,"cut":false,"hidden":true,"merged":[]}
["Riesgo","Costo afectado","Alpha","Beta","Mínimo","Máximo","Costo Esperado"]
[null,null,null,null,null,null,{"$f":"IF(Tabla12[[#This Row],[Costo afectado]]>0,[4]!RiskBeta(Tabla12[[#This Row],[Alpha]],Tabla12[[#This Row],[Beta]],Tabla12[[#This Row],[Mínimo]],Tabla12[[#This Row],[Máximo]]),\"ELIMINAR\")","v":"ELIMINAR"}]
[null,null,null,null,null,null,{"$f":"IF(Tabla12[[#This Row],[Costo afectado]]>0,[4]!RiskBeta(Tabla12[[#This Row],[Alpha]],Tabla12[[#This Row],[Beta]],Tabla12[[#This Row],[Mínimo]],Tabla12[[#This Row],[Máximo]]),\"ELIMINAR\")","v":"ELIMINAR"}]
[null,null,null,null,null,null,{"$f":"IF(Tabla12[[#This Row],[Costo afectado]]>0,[4]!RiskBeta(Tabla12[[#This Row],[Alpha]],Tabla12[[#This Row],[Beta]],Tabla12[[#This Row],[Mínimo]],Tabla12[[#This Row],[Máximo]]),\"ELIMINAR\")","v":"ELIMINAR"}]
[null,null,null,null,null,null,{"$f":"IF(Tabla12[[#This Row],[Costo afectado]]>0,[4]!RiskBeta(Tabla12[[#This Row],[Alpha]],Tabla12[[#This Row],[Beta]],Tabla12[[#This Row],[Mínimo]],Tabla12[[#This Row],[Máximo]]),\"ELIMINAR\")","v":"ELIMINAR"}]
[null,null,null,null,null,null,{"$f":"IF(Tabla12[[#This Row],[Costo afectado]]>0,[4]!RiskBeta(Tabla12[[#This Row],[Alpha]],Tabla12[[#This Row],[Beta]],Tabla12[[#This Row],[Mínimo]],Tabla12[[#This Row],[Máximo]]),\"ELIMINAR\")","v":"ELIMINAR"}]
[null,null,null,null,null,null,{"$f":"IF(Tabla12[[#This Row],[Costo afectado]]>0,[4]!RiskBeta(Tabla12[[#This Row],[Alpha]],Tabla12[[#This Row],[Beta]],Tabla12[[#This Row],[Mínimo]],Tabla12[[#This Row],[Máximo]]),\"ELIMINAR\")","v":"ELIMINAR"}]
[null,null,null,null,null,null,{"$f":"IF(Tabla12[[#This Row],[Costo afectado]]>0,[4]!RiskBeta(Tabla12[[#This Row],[Alpha]],Tabla12[[#This Row],[Beta]],Tabla12[[#This Row],[Mínimo]],Tabla12[[#This Row],[Máximo]]),\"ELIMINAR\")","v":"ELIMINAR"}]
[null,null,null,null,null,null,{"$f":"IF(Tabla12[[#This Row],[Costo afectado]]>0,[4]!RiskBeta(Tabla12[[#This Row],[Alpha]],Tabla12[[#This Row],[Beta]],Tabla12[[#This Row],[Mínimo]],Tabla12[[#This Row],[Máximo]]),\"ELIMINAR\")","v":"ELIMINAR"}]
[null,null,null,null,null,null,{"$f":"IF(Tabla12[[#This Row],[Costo afectado]]>0,[4]!RiskBeta(Tabla12[[#This Row],[Alpha]],Tabla12[[#This Row],[Beta]],Tabla12[[#This Row],[Mínimo]],Tabla12[[#This Row],[Máximo]]),\"ELIMINAR\")","v":"ELIMINAR"}]
[null,null,null,null,null,null,{"$f":"IF(Tabla12[[#This Row],[Costo afectado]]>0,[4]!RiskBeta(Tabla12[[#This Row],[Alpha]],Tabla12[[#This Row],[Beta]],Tabla12[[#This Row],[Mínimo]],Tabla12[[#This Row],[Máximo]]),\"ELIMINAR\")","v":"ELIMINAR"}]
[null,null,null,null,null,null,{"$f":"IF(Tabla12[[#This Row],[Costo afectado]]>0,[4]!RiskBeta(Tabla12[[#This Row],[Alpha]],Tabla12[[#This Row],[Beta]],Tabla12[[#This Row],[Mínimo]],Tabla12[[#This Row],[Máximo]]),\"ELIMINAR\")","v":"ELIMINAR"}]
[null,null,null,null,null,null,{"$f":"IF(Tabla12[[#This Row],[Costo afectado]]>0,[4]!RiskBeta(Tabla12[[#This Row],[Alpha]],Tabla12[[#This Row],[Beta]],Tabla12[[#This Row],[Mínimo]],Tabla12[[#This Row],[Máximo]]),\"ELIMINAR\")","v":"ELIMINAR"}]
[null,null,null,null,null,null,{"$f":"IF(Tabla12[[#This Row],[Costo afectado]]>0,[4]!RiskBeta(Tabla12[[#This Row],[Alpha]],Tabla12[[#This Row],[Beta]],Tabla12[[#This Row],[Mínimo]],Tabla12[[#This Row],[Máximo]]),\"ELIMINAR\")","v":"ELIMINAR"}]
[null,null,null,null,null,null,{"$f":"IF(Tabla12[[#This Row],[Costo afectado]]>0,[4]!RiskBeta(Tabla12[[#This Row],[Alpha]],Tabla12[[#This Row],[Beta]],Tabla12[[#This Row],[Mínimo]],Tabla12[[#This Row],[Máximo]]),\"ELIMINAR\")","v":"ELIMINAR"}]
[null,null,null,null,null,null,{"$f":"IF(Tabla12[[#This Row],[Costo afectado]]>0,[4]!RiskBeta(Tabla12[[#This Row],[Alpha]],Tabla12[[#This Row],[Beta]],Tabla12[[#This Row],[Mínimo]],Tabla12[[#This Row],[Máximo]]),\"ELIMINAR\")","v":"ELIMINAR"}]
[null,null,null,null,null,null,{"$f":"IF(Tabla12[[#This Row],[Costo afectado]]>0,[4]!RiskBeta(Tabla12[[#This Row],[Alpha]],Tabla12[[#This Row],[Beta]],Tabla12[[#This Row],[Mínimo]],Tabla12[[#This Row],[Máximo]]),\"ELIMINAR\")","v":"ELIMINAR"}]
[null,null,null,null,null,null,{"$f":"IF(Tabla12[[#This Row],[Costo afectado]]>0,[4]!RiskBeta(Tabla12[[#This Row],[Alpha]],Tabla12[[#This Row],[Beta]],Tabla12[[#This Row],[Mínimo]],Tabla12[[#This Row],[Máximo]]),\"ELIMINAR\")","v":"ELIMINAR"}]
[null,null,null,null,null,null,{"$f":"IF(Tabla12[[#This Row],[Costo afectado]]>0,[4]!RiskBeta(Tabla12[[#This Row],[Alpha]],Tabla12[[#This Row],[Beta]],Tabla12[[#This Row],[Mínimo]],Tabla12[[#This Row],[Máximo]]),\"ELIMINAR\")","v":"ELIMINAR"}]
[null,null,null,null,null,null,{"$f":"IF(Tabla12[[#This Row],[Costo afectado]]>0,[4]!RiskBeta(Tabla12[[#This Row],[Alpha]],Tabla12[[#This Row],[Beta]],Tabla12[[#This Row],[Mínimo]],Tabla12[[#This Row],[Máximo]]),\"ELIMINAR\")","v":"ELIMINAR"}]
[null,null,null,null,null,null,{"$f":"IF(Tabla12[[#This Row],[Costo afectado]]>0,[4]!RiskBeta(Tabla12[[#This Row],[Alpha]],Tabla12[[#This Row],[Beta]],Tabla12[[#This Row],[Mínimo]],Tabla12[[#This Row],[Máximo]]),\"ELIMINAR\")","v":"ELIMINAR"}]

{"sheet":"D.Normal","index":5,"n_rows":21,"n_cols":5,"rows_kept":21,"cut":false,"hidden":true,"merged":[]}
["Riesgo","Costo afectado","Media","Desviación estandar","Costo Esperado"]
[null,null,null,null,{"$f":"IF(Tabla2[[#This Row],[Costo afectado]]>0,[4]!RiskNormal(Tabla2[[#This Row],[Media]],Tabla2[[#This Row],[Desviación estandar]]),\"ELIMINAR\")","v":"ELIMINAR"}]
[null,null,null,null,{"$f":"IF(Tabla2[[#This Row],[Costo afectado]]>0,[4]!RiskNormal(Tabla2[[#This Row],[Media]],Tabla2[[#This Row],[Desviación estandar]]),\"ELIMINAR\")","v":"ELIMINAR"}]
[null,null,null,null,{"$f":"IF(Tabla2[[#This Row],[Costo afectado]]>0,[4]!RiskNormal(Tabla2[[#This Row],[Media]],Tabla2[[#This Row],[Desviación estandar]]),\"ELIMINAR\")","v":"ELIMINAR"}]
[null,null,null,null,{"$f":"IF(Tabla2[[#This Row],[Costo afectado]]>0,[4]!RiskNormal(Tabla2[[#This Row],[Media]],Tabla2[[#This Row],[Desviación estandar]]),\"ELIMINAR\")","v":"ELIMINAR"}]
[null,null,null,null,{"$f":"IF(Tabla2[[#This Row],[Costo afectado]]>0,[4]!RiskNormal(Tabla2[[#This Row],[Media]],Tabla2[[#This Row],[Desviación estandar]]),\"ELIMINAR\")","v":"ELIMINAR"}]
[null,null,null,null,{"$f":"IF(Tabla2[[#This Row],[Costo afectado]]>0,[4]!RiskNormal(Tabla2[[#This Row],[Media]],Tabla2[[#This Row],[Desviación estandar]]),\"ELIMINAR\")","v":"ELIMINAR"}]
[null,null,null,null,{"$f":"IF(Tabla2[[#This Row],[Costo afectado]]>0,[4]!RiskNormal(Tabla2[[#This Row],[Media]],Tabla2[[#This Row],[Desviación estandar]]),\"ELIMINAR\")","v":"ELIMINAR"}]
[null,null,null,null,{"$f":"IF(Tabla2[[#This Row],[Costo afectado]]>0,[4]!RiskNormal(Tabla2[[#This Row],[Media]],Tabla2[[#This Row],[Desviación estandar]]),\"ELIMINAR\")","v":"ELIMINAR"}]
[null,null,null,null,{"$f":"IF(Tabla2[[#This Row],[Costo afectado]]>0,[4]!RiskNormal(Tabla2[[#This Row],[Media]],Tabla2[[#This Row],[Desviación estandar]]),\"ELIMINAR\")","v":"ELIMINAR"}]
[null,null,null,null,{"$f":"IF(Tabla2[[#This Row],[Costo afectado]]>0,[4]!RiskNormal(Tabla2[[#This Row],[Media]],Tabla2[[#This Row],[Desviación estandar]]),\"ELIMINAR\")","v":"ELIMINAR"}]
[null,null,null,null,{"$f":"IF(Tabla2[[#This Row],[Costo afectado]]>0,[4]!RiskNormal(Tabla2[[#This Row],[Media]],Tabla2[[#This Row],[Desviación estandar]]),\"ELIMINAR\")","v":"ELIMINAR"}]
[null,null,null,null,{"$f":"IF(Tabla2[[#This Row],[Costo afectado]]>0,[4]!RiskNormal(Tabla2[[#This Row],[Media]],Tabla2[[#This Row],[Desviación estandar]]),\"ELIMINAR\")","v":"ELIMINAR"}]
[null,null,null,null,{"$f":"IF(Tabla2[[#This Row],[Costo afectado]]>0,[4]!RiskNormal(Tabla2[[#This Row],[Media]],Tabla2[[#This Row],[Desviación estandar]]),\"ELIMINAR\")","v":"ELIMINAR"}]
[null,null,null,null,{"$f":"IF(Tabla2[[#This Row],[Costo afectado]]>0,[4]!RiskNormal(Tabla2[[#This Row],[Media]],Tabla2[[#This Row],[Desviación estandar]]),\"ELIMINAR\")","v":"ELIMINAR"}]
[null,null,null,null,{"$f":"IF(Tabla2[[#This Row],[Costo afectado]]>0,[4]!RiskNormal(Tabla2[[#This Row],[Media]],Tabla2[[#This Row],[Desviación estandar]]),\"ELIMINAR\")","v":"ELIMINAR"}]
[null,null,null,null,{"$f":"IF(Tabla2[[#This Row],[Costo afectado]]>0,[4]!RiskNormal(Tabla2[[#This Row],[Media]],Tabla2[[#This Row],[Desviación estandar]]),\"ELIMINAR\")","v":"ELIMINAR"}]
[null,null,null,null,{"$f":"IF(Tabla2[[#This Row],[Costo afectado]]>0,[4]!RiskNormal(Tabla2[[#This Row],[Media]],Tabla2[[#This Row],[Desviación estandar]]),\"ELIMINAR\")","v":"ELIMINAR"}]
[null,null,null,null,{"$f":"IF(Tabla2[[#This Row],[Costo afectado]]>0,[4]!RiskNormal(Tabla2[[#This Row],[Media]],Tabla2[[#This Row],[Desviación estandar]]),\"ELIMINAR\")","v":"ELIMINAR"}]
[null,null,null,null,{"$f":"IF(Tabla2[[#This Row],[Costo afectado]]>0,[4]!RiskNormal(Tabla2[[#This Row],[Media]],Tabla2[[#This Row],[Desviación estandar]]),\"ELIMINAR\")","v":"ELIMINAR"}]
[null,null,null,null,{"$f":"IF(Tabla2[[#This Row],[Costo afectado]]>0,[4]!RiskNormal(Tabla2[[#This Row],[Media]],Tabla2[[#This Row],[Desviación estandar]]),\"ELIMINAR\")","v":"ELIMINAR"}]

{"sheet":"D.LogNormal","index":6,"n_rows":21,"n_cols":5,"rows_kept":21,"cut":false,"hidden":true,"merged":[]}
["Riesgo","Costo afectado","Media","Desviación estandar","Costo Esperado"]
[null,null,null,null,{"$f":"IF(Tabla25[[#This Row],[Costo afectado]]>0,[4]!RiskLogNorm(Tabla25[[#This Row],[Media]],Tabla25[[#This Row],[Desviación estandar]]),\"ELIMINAR\")","v":"ELIMINAR"}]
[null,null,null,null,{"$f":"IF(Tabla25[[#This Row],[Costo afectado]]>0,[4]!RiskLogNorm(Tabla25[[#This Row],[Media]],Tabla25[[#This Row],[Desviación estandar]]),\"ELIMINAR\")","v":"ELIMINAR"}]
[null,null,null,null,{"$f":"IF(Tabla25[[#This Row],[Costo afectado]]>0,[4]!RiskLogNorm(Tabla25[[#This Row],[Media]],Tabla25[[#This Row],[Desviación estandar]]),\"ELIMINAR\")","v":"ELIMINAR"}]
[null,null,null,null,{"$f":"IF(Tabla25[[#This Row],[Costo afectado]]>0,[4]!RiskLogNorm(Tabla25[[#This Row],[Media]],Tabla25[[#This Row],[Desviación estandar]]),\"ELIMINAR\")","v":"ELIMINAR"}]
[null,null,null,null,{"$f":"IF(Tabla25[[#This Row],[Costo afectado]]>0,[4]!RiskLogNorm(Tabla25[[#This Row],[Media]],Tabla25[[#This Row],[Desviación estandar]]),\"ELIMINAR\")","v":"ELIMINAR"}]
[null,null,null,null,{"$f":"IF(Tabla25[[#This Row],[Costo afectado]]>0,[4]!RiskLogNorm(Tabla25[[#This Row],[Media]],Tabla25[[#This Row],[Desviación estandar]]),\"ELIMINAR\")","v":"ELIMINAR"}]
[null,null,null,null,{"$f":"IF(Tabla25[[#This Row],[Costo afectado]]>0,[4]!RiskLogNorm(Tabla25[[#This Row],[Media]],Tabla25[[#This Row],[Desviación estandar]]),\"ELIMINAR\")","v":"ELIMINAR"}]
[null,null,null,null,{"$f":"IF(Tabla25[[#This Row],[Costo afectado]]>0,[4]!RiskLogNorm(Tabla25[[#This Row],[Media]],Tabla25[[#This Row],[Desviación estandar]]),\"ELIMINAR\")","v":"ELIMINAR"}]
[null,null,null,null,{"$f":"IF(Tabla25[[#This Row],[Costo afectado]]>0,[4]!RiskLogNorm(Tabla25[[#This Row],[Media]],Tabla25[[#This Row],[Desviación estandar]]),\"ELIMINAR\")","v":"ELIMINAR"}]
[null,null,null,null,{"$f":"IF(Tabla25[[#This Row],[Costo afectado]]>0,[4]!RiskLogNorm(Tabla25[[#This Row],[Media]],Tabla25[[#This Row],[Desviación estandar]]),\"ELIMINAR\")","v":"ELIMINAR"}]
[null,null,null,null,{"$f":"IF(Tabla25[[#This Row],[Costo afectado]]>0,[4]!RiskLogNorm(Tabla25[[#This Row],[Media]],Tabla25[[#This Row],[Desviación estandar]]),\"ELIMINAR\")","v":"ELIMINAR"}]
[null,null,null,null,{"$f":"IF(Tabla25[[#This Row],[Costo afectado]]>0,[4]!RiskLogNorm(Tabla25[[#This Row],[Media]],Tabla25[[#This Row],[Desviación estandar]]),\"ELIMINAR\")","v":"ELIMINAR"}]
[null,null,null,null,{"$f":"IF(Tabla25[[#This Row],[Costo afectado]]>0,[4]!RiskLogNorm(Tabla25[[#This Row],[Media]],Tabla25[[#This Row],[Desviación estandar]]),\"ELIMINAR\")","v":"ELIMINAR"}]
[null,null,null,null,{"$f":"IF(Tabla25[[#This Row],[Costo afectado]]>0,[4]!RiskLogNorm(Tabla25[[#This Row],[Media]],Tabla25[[#This Row],[Desviación estandar]]),\"ELIMINAR\")","v":"ELIMINAR"}]
[null,null,null,null,{"$f":"IF(Tabla25[[#This Row],[Costo afectado]]>0,[4]!RiskLogNorm(Tabla25[[#This Row],[Media]],Tabla25[[#This Row],[Desviación estandar]]),\"ELIMINAR\")","v":"ELIMINAR"}]
[null,null,null,null,{"$f":"IF(Tabla25[[#This Row],[Costo afectado]]>0,[4]!RiskLogNorm(Tabla25[[#This Row],[Media]],Tabla25[[#This Row],[Desviación estandar]]),\"ELIMINAR\")","v":"ELIMINAR"}]
[null,null,null,null,{"$f":"IF(Tabla25[[#This Row],[Costo afectado]]>0,[4]!RiskLogNorm(Tabla25[[#This Row],[Media]],Tabla25[[#This Row],[Desviación estandar]]),\"ELIMINAR\")","v":"ELIMINAR"}]
[null,null,null,null,{"$f":"IF(Tabla25[[#This Row],[Costo afectado]]>0,[4]!RiskLogNorm(Tabla25[[#This Row],[Media]],Tabla25[[#This Row],[Desviación estandar]]),\"ELIMINAR\")","v":"ELIMINAR"}]
[null,null,null,null,{"$f":"IF(Tabla25[[#This Row],[Costo afectado]]>0,[4]!RiskLogNorm(Tabla25[[#This Row],[Media]],Tabla25[[#This Row],[Desviación estandar]]),\"ELIMINAR\")","v":"ELIMINAR"}]
[null,null,null,null,{"$f":"IF(Tabla25[[#This Row],[Costo afectado]]>0,[4]!RiskLogNorm(Tabla25[[#This Row],[Media]],Tabla25[[#This Row],[Desviación estandar]]),\"ELIMINAR\")","v":"ELIMINAR"}]

{"sheet":"D.Triangular","index":7,"n_rows":21,"n_cols":6,"rows_kept":21,"cut":false,"hidden":true,"merged":[]}
["Riesgo","Costo afectado","Mínimo","Moda","Máximo","Costo Esperado"]
[null,null,null,null,null,{"$f":"IF(Tabla24[[#This Row],[Costo afectado]]>0,[4]!RiskTriang(Tabla24[[#This Row],[Mínimo]],Tabla24[[#This Row],[Moda]],Tabla24[[#This Row],[Máximo]]),\"ELIMINAR\")","v":"ELIMINAR"}]
[null,null,null,null,null,{"$f":"IF(Tabla24[[#This Row],[Costo afectado]]>0,[4]!RiskTriang(Tabla24[[#This Row],[Mínimo]],Tabla24[[#This Row],[Moda]],Tabla24[[#This Row],[Máximo]]),\"ELIMINAR\")","v":"ELIMINAR"}]
[null,null,null,null,null,{"$f":"IF(Tabla24[[#This Row],[Costo afectado]]>0,[4]!RiskTriang(Tabla24[[#This Row],[Mínimo]],Tabla24[[#This Row],[Moda]],Tabla24[[#This Row],[Máximo]]),\"ELIMINAR\")","v":"ELIMINAR"}]
[null,null,null,null,null,{"$f":"IF(Tabla24[[#This Row],[Costo afectado]]>0,[4]!RiskTriang(Tabla24[[#This Row],[Mínimo]],Tabla24[[#This Row],[Moda]],Tabla24[[#This Row],[Máximo]]),\"ELIMINAR\")","v":"ELIMINAR"}]
[null,null,null,null,null,{"$f":"IF(Tabla24[[#This Row],[Costo afectado]]>0,[4]!RiskTriang(Tabla24[[#This Row],[Mínimo]],Tabla24[[#This Row],[Moda]],Tabla24[[#This Row],[Máximo]]),\"ELIMINAR\")","v":"ELIMINAR"}]
[null,null,null,null,null,{"$f":"IF(Tabla24[[#This Row],[Costo afectado]]>0,[4]!RiskTriang(Tabla24[[#This Row],[Mínimo]],Tabla24[[#This Row],[Moda]],Tabla24[[#This Row],[Máximo]]),\"ELIMINAR\")","v":"ELIMINAR"}]
[null,null,null,null,null,{"$f":"IF(Tabla24[[#This Row],[Costo afectado]]>0,[4]!RiskTriang(Tabla24[[#This Row],[Mínimo]],Tabla24[[#This Row],[Moda]],Tabla24[[#This Row],[Máximo]]),\"ELIMINAR\")","v":"ELIMINAR"}]
[null,null,null,null,null,{"$f":"IF(Tabla24[[#This Row],[Costo afectado]]>0,[4]!RiskTriang(Tabla24[[#This Row],[Mínimo]],Tabla24[[#This Row],[Moda]],Tabla24[[#This Row],[Máximo]]),\"ELIMINAR\")","v":"ELIMINAR"}]
[null,null,null,null,null,{"$f":"IF(Tabla24[[#This Row],[Costo afectado]]>0,[4]!RiskTriang(Tabla24[[#This Row],[Mínimo]],Tabla24[[#This Row],[Moda]],Tabla24[[#This Row],[Máximo]]),\"ELIMINAR\")","v":"ELIMINAR"}]
[null,null,null,null,null,{"$f":"IF(Tabla24[[#This Row],[Costo afectado]]>0,[4]!RiskTriang(Tabla24[[#This Row],[Mínimo]],Tabla24[[#This Row],[Moda]],Tabla24[[#This Row],[Máximo]]),\"ELIMINAR\")","v":"ELIMINAR"}]
[null,null,null,null,null,{"$f":"IF(Tabla24[[#This Row],[Costo afectado]]>0,[4]!RiskTriang(Tabla24[[#This Row],[Mínimo]],Tabla24[[#This Row],[Moda]],Tabla24[[#This Row],[Máximo]]),\"ELIMINAR\")","v":"ELIMINAR"}]
[null,null,null,null,null,{"$f":"IF(Tabla24[[#This Row],[Costo afectado]]>0,[4]!RiskTriang(Tabla24[[#This Row],[Mínimo]],Tabla24[[#This Row],[Moda]],Tabla24[[#This Row],[Máximo]]),\"ELIMINAR\")","v":"ELIMINAR"}]
[null,null,null,null,null,{"$f":"IF(Tabla24[[#This Row],[Costo afectado]]>0,[4]!RiskTriang(Tabla24[[#This Row],[Mínimo]],Tabla24[[#This Row],[Moda]],Tabla24[[#This Row],[Máximo]]),\"ELIMINAR\")","v":"ELIMINAR"}]
[null,null,null,null,null,{"$f":"IF(Tabla24[[#This Row],[Costo afectado]]>0,[4]!RiskTriang(Tabla24[[#This Row],[Mínimo]],Tabla24[[#This Row],[Moda]],Tabla24[[#This Row],[Máximo]]),\"ELIMINAR\")","v":"ELIMINAR"}]
[null,null,null,null,null,{"$f":"IF(Tabla24[[#This Row],[Costo afectado]]>0,[4]!RiskTriang(Tabla24[[#This Row],[Mínimo]],Tabla24[[#This Row],[Moda]],Tabla24[[#This Row],[Máximo]]),\"ELIMINAR\")","v":"ELIMINAR"}]
[null,null,null,null,null,{"$f":"IF(Tabla24[[#This Row],[Costo afectado]]>0,[4]!RiskTriang(Tabla24[[#This Row],[Mínimo]],Tabla24[[#This Row],[Moda]],Tabla24[[#This Row],[Máximo]]),\"ELIMINAR\")","v":"ELIMINAR"}]
[null,null,null,null,null,{"$f":"IF(Tabla24[[#This Row],[Costo afectado]]>0,[4]!RiskTriang(Tabla24[[#This Row],[Mínimo]],Tabla24[[#This Row],[Moda]],Tabla24[[#This Row],[Máximo]]),\"ELIMINAR\")","v":"ELIMINAR"}]
[null,null,null,null,null,{"$f":"IF(Tabla24[[#This Row],[Costo afectado]]>0,[4]!RiskTriang(Tabla24[[#This Row],[Mínimo]],Tabla24[[#This Row],[Moda]],Tabla24[[#This Row],[Máximo]]),\"ELIMINAR\")","v":"ELIMINAR"}]
[null,null,null,null,null,{"$f":"IF(Tabla24[[#This Row],[Costo afectado]]>0,[4]!RiskTriang(Tabla24[[#This Row],[Mínimo]],Tabla24[[#This Row],[Moda]],Tabla24[[#This Row],[Máximo]]),\"ELIMINAR\")","v":"ELIMINAR"}]
[null,null,null,null,null,{"$f":"IF(Tabla24[[#This Row],[Costo afectado]]>0,[4]!RiskTriang(Tabla24[[#This Row],[Mínimo]],Tabla24[[#This Row],[Moda]],Tabla24[[#This Row],[Máximo]]),\"ELIMINAR\")","v":"ELIMINAR"}]

{"sheet":"D.Erlang","index":8,"n_rows":21,"n_cols":5,"rows_kept":21,"cut":false,"hidden":true,"merged":[]}
["Riesgo","Costo afectado","Kappa","Lambda","Costo Esperado"]
[null,null,null,null,{"$f":"IF(Tabla246[[#This Row],[Costo afectado]]>0,[4]!RiskErlang(Tabla246[[#This Row],[Kappa]],Tabla246[[#This Row],[Lambda]]),\"ELIMINAR\")","v":"ELIMINAR"}]
[null,null,null,null,{"$f":"IF(Tabla246[[#This Row],[Costo afectado]]>0,[4]!RiskErlang(Tabla246[[#This Row],[Kappa]],Tabla246[[#This Row],[Lambda]]),\"ELIMINAR\")","v":"ELIMINAR"}]
[null,null,null,null,{"$f":"IF(Tabla246[[#This Row],[Costo afectado]]>0,[4]!RiskErlang(Tabla246[[#This Row],[Kappa]],Tabla246[[#This Row],[Lambda]]),\"ELIMINAR\")","v":"ELIMINAR"}]
[null,null,null,null,{"$f":"IF(Tabla246[[#This Row],[Costo afectado]]>0,[4]!RiskErlang(Tabla246[[#This Row],[Kappa]],Tabla246[[#This Row],[Lambda]]),\"ELIMINAR\")","v":"ELIMINAR"}]
[null,null,null,null,{"$f":"IF(Tabla246[[#This Row],[Costo afectado]]>0,[4]!RiskErlang(Tabla246[[#This Row],[Kappa]],Tabla246[[#This Row],[Lambda]]),\"ELIMINAR\")","v":"ELIMINAR"}]
[null,null,null,null,{"$f":"IF(Tabla246[[#This Row],[Costo afectado]]>0,[4]!RiskErlang(Tabla246[[#This Row],[Kappa]],Tabla246[[#This Row],[Lambda]]),\"ELIMINAR\")","v":"ELIMINAR"}]
[null,null,null,null,{"$f":"IF(Tabla246[[#This Row],[Costo afectado]]>0,[4]!RiskErlang(Tabla246[[#This Row],[Kappa]],Tabla246[[#This Row],[Lambda]]),\"ELIMINAR\")","v":"ELIMINAR"}]
[null,null,null,null,{"$f":"IF(Tabla246[[#This Row],[Costo afectado]]>0,[4]!RiskErlang(Tabla246[[#This Row],[Kappa]],Tabla246[[#This Row],[Lambda]]),\"ELIMINAR\")","v":"ELIMINAR"}]
[null,null,null,null,{"$f":"IF(Tabla246[[#This Row],[Costo afectado]]>0,[4]!RiskErlang(Tabla246[[#This Row],[Kappa]],Tabla246[[#This Row],[Lambda]]),\"ELIMINAR\")","v":"ELIMINAR"}]
[null,null,null,null,{"$f":"IF(Tabla246[[#This Row],[Costo afectado]]>0,[4]!RiskErlang(Tabla246[[#This Row],[Kappa]],Tabla246[[#This Row],[Lambda]]),\"ELIMINAR\")","v":"ELIMINAR"}]
[null,null,null,null,{"$f":"IF(Tabla246[[#This Row],[Costo afectado]]>0,[4]!RiskErlang(Tabla246[[#This Row],[Kappa]],Tabla246[[#This Row],[Lambda]]),\"ELIMINAR\")","v":"ELIMINAR"}]
[null,null,null,null,{"$f":"IF(Tabla246[[#This Row],[Costo afectado]]>0,[4]!RiskErlang(Tabla246[[#This Row],[Kappa]],Tabla246[[#This Row],[Lambda]]),\"ELIMINAR\")","v":"ELIMINAR"}]
[null,null,null,null,{"$f":"IF(Tabla246[[#This Row],[Costo afectado]]>0,[4]!RiskErlang(Tabla246[[#This Row],[Kappa]],Tabla246[[#This Row],[Lambda]]),\"ELIMINAR\")","v":"ELIMINAR"}]
[null,null,null,null,{"$f":"IF(Tabla246[[#This Row],[Costo afectado]]>0,[4]!RiskErlang(Tabla246[[#This Row],[Kappa]],Tabla246[[#This Row],[Lambda]]),\"ELIMINAR\")","v":"ELIMINAR"}]
[null,null,null,null,{"$f":"IF(Tabla246[[#This Row],[Costo afectado]]>0,[4]!RiskErlang(Tabla246[[#This Row],[Kappa]],Tabla246[[#This Row],[Lambda]]),\"ELIMINAR\")","v":"ELIMINAR"}]
[null,null,null,null,{"$f":"IF(Tabla246[[#This Row],[Costo afectado]]>0,[4]!RiskErlang(Tabla246[[#This Row],[Kappa]],Tabla246[[#This Row],[Lambda]]),\"ELIMINAR\")","v":"ELIMINAR"}]
[null,null,null,null,{"$f":"IF(Tabla246[[#This Row],[Costo afectado]]>0,[4]!RiskErlang(Tabla246[[#This Row],[Kappa]],Tabla246[[#This Row],[Lambda]]),\"ELIMINAR\")","v":"ELIMINAR"}]
[null,null,null,null,{"$f":"IF(Tabla246[[#This Row],[Costo afectado]]>0,[4]!RiskErlang(Tabla246[[#This Row],[Kappa]],Tabla246[[#This Row],[Lambda]]),\"ELIMINAR\")","v":"ELIMINAR"}]
[null,null,null,null,{"$f":"IF(Tabla246[[#This Row],[Costo afectado]]>0,[4]!RiskErlang(Tabla246[[#This Row],[Kappa]],Tabla246[[#This Row],[Lambda]]),\"ELIMINAR\")","v":"ELIMINAR"}]
[null,null,null,null,{"$f":"IF(Tabla246[[#This Row],[Costo afectado]]>0,[4]!RiskErlang(Tabla246[[#This Row],[Kappa]],Tabla246[[#This Row],[Lambda]]),\"ELIMINAR\")","v":"ELIMINAR"}]

{"sheet":"D.Exponencial","index":9,"n_rows":21,"n_cols":4,"rows_kept":21,"cut":false,"hidden":true,"merged":[]}
["Riesgo","Costo afectado","Media","Costo Esperado"]
[null,null,null,{"$f":"IF(Tabla2467[[#This Row],[Costo afectado]]>0,[4]!RiskExpon(Tabla2467[[#This Row],[Media]]),\"ELIMINAR\")","v":"ELIMINAR"}]
[null,null,null,{"$f":"IF(Tabla2467[[#This Row],[Costo afectado]]>0,[4]!RiskExpon(Tabla2467[[#This Row],[Media]]),\"ELIMINAR\")","v":"ELIMINAR"}]
[null,null,null,{"$f":"IF(Tabla2467[[#This Row],[Costo afectado]]>0,[4]!RiskExpon(Tabla2467[[#This Row],[Media]]),\"ELIMINAR\")","v":"ELIMINAR"}]
[null,null,null,{"$f":"IF(Tabla2467[[#This Row],[Costo afectado]]>0,[4]!RiskExpon(Tabla2467[[#This Row],[Media]]),\"ELIMINAR\")","v":"ELIMINAR"}]
[null,null,null,{"$f":"IF(Tabla2467[[#This Row],[Costo afectado]]>0,[4]!RiskExpon(Tabla2467[[#This Row],[Media]]),\"ELIMINAR\")","v":"ELIMINAR"}]
[null,null,null,{"$f":"IF(Tabla2467[[#This Row],[Costo afectado]]>0,[4]!RiskExpon(Tabla2467[[#This Row],[Media]]),\"ELIMINAR\")","v":"ELIMINAR"}]
[null,null,null,{"$f":"IF(Tabla2467[[#This Row],[Costo afectado]]>0,[4]!RiskExpon(Tabla2467[[#This Row],[Media]]),\"ELIMINAR\")","v":"ELIMINAR"}]
[null,null,null,{"$f":"IF(Tabla2467[[#This Row],[Costo afectado]]>0,[4]!RiskExpon(Tabla2467[[#This Row],[Media]]),\"ELIMINAR\")","v":"ELIMINAR"}]
[null,null,null,{"$f":"IF(Tabla2467[[#This Row],[Costo afectado]]>0,[4]!RiskExpon(Tabla2467[[#This Row],[Media]]),\"ELIMINAR\")","v":"ELIMINAR"}]
[null,null,null,{"$f":"IF(Tabla2467[[#This Row],[Costo afectado]]>0,[4]!RiskExpon(Tabla2467[[#This Row],[Media]]),\"ELIMINAR\")","v":"ELIMINAR"}]
[null,null,null,{"$f":"IF(Tabla2467[[#This Row],[Costo afectado]]>0,[4]!RiskExpon(Tabla2467[[#This Row],[Media]]),\"ELIMINAR\")","v":"ELIMINAR"}]
[null,null,null,{"$f":"IF(Tabla2467[[#This Row],[Costo afectado]]>0,[4]!RiskExpon(Tabla2467[[#This Row],[Media]]),\"ELIMINAR\")","v":"ELIMINAR"}]
[null,null,null,{"$f":"IF(Tabla2467[[#This Row],[Costo afectado]]>0,[4]!RiskExpon(Tabla2467[[#This Row],[Media]]),\"ELIMINAR\")","v":"ELIMINAR"}]
[null,null,null,{"$f":"IF(Tabla2467[[#This Row],[Costo afectado]]>0,[4]!RiskExpon(Tabla2467[[#This Row],[Media]]),\"ELIMINAR\")","v":"ELIMINAR"}]
[null,null,null,{"$f":"IF(Tabla2467[[#This Row],[Costo afectado]]>0,[4]!RiskExpon(Tabla2467[[#This Row],[Media]]),\"ELIMINAR\")","v":"ELIMINAR"}]
[null,null,null,{"$f":"IF(Tabla2467[[#This Row],[Costo afectado]]>0,[4]!RiskExpon(Tabla2467[[#This Row],[Media]]),\"ELIMINAR\")","v":"ELIMINAR"}]
[null,null,null,{"$f":"IF(Tabla2467[[#This Row],[Costo afectado]]>0,[4]!RiskExpon(Tabla2467[[#This Row],[Media]]),\"ELIMINAR\")","v":"ELIMINAR"}]
[null,null,null,{"$f":"IF(Tabla2467[[#This Row],[Costo afectado]]>0,[4]!RiskExpon(Tabla2467[[#This Row],[Media]]),\"ELIMINAR\")","v":"ELIMINAR"}]
[null,null,null,{"$f":"IF(Tabla2467[[#This Row],[Costo afectado]]>0,[4]!RiskExpon(Tabla2467[[#This Row],[Media]]),\"ELIMINAR\")","v":"ELIMINAR"}]
[null,null,null,{"$f":"IF(Tabla2467[[#This Row],[Costo afectado]]>0,[4]!RiskExpon(Tabla2467[[#This Row],[Media]]),\"ELIMINAR\")","v":"ELIMINAR"}]

{"sheet":"D.Gamma","index":10,"n_rows":21,"n_cols":5,"rows_kept":21,"cut":false,"hidden":true,"merged":[]}
["Riesgo","Costo afectado","Alpha","Beta","Costo Esperado"]
[null,null,null,null,{"$f":"IF(Tabla248[[#This Row],[Costo afectado]]>0,[4]!RiskGamma(Tabla248[[#This Row],[Alpha]],Tabla248[[#This Row],[Beta]]),\"ELIMINAR\")","v":"ELIMINAR"}]
[null,null,null,null,{"$f":"IF(Tabla248[[#This Row],[Costo afectado]]>0,[4]!RiskGamma(Tabla248[[#This Row],[Alpha]],Tabla248[[#This Row],[Beta]]),\"ELIMINAR\")","v":"ELIMINAR"}]
[null,null,null,null,{"$f":"IF(Tabla248[[#This Row],[Costo afectado]]>0,[4]!RiskGamma(Tabla248[[#This Row],[Alpha]],Tabla248[[#This Row],[Beta]]),\"ELIMINAR\")","v":"ELIMINAR"}]
[null,null,null,null,{"$f":"IF(Tabla248[[#This Row],[Costo afectado]]>0,[4]!RiskGamma(Tabla248[[#This Row],[Alpha]],Tabla248[[#This Row],[Beta]]),\"ELIMINAR\")","v":"ELIMINAR"}]
[null,null,null,null,{"$f":"IF(Tabla248[[#This Row],[Costo afectado]]>0,[4]!RiskGamma(Tabla248[[#This Row],[Alpha]],Tabla248[[#This Row],[Beta]]),\"ELIMINAR\")","v":"ELIMINAR"}]
[null,null,null,null,{"$f":"IF(Tabla248[[#This Row],[Costo afectado]]>0,[4]!RiskGamma(Tabla248[[#This Row],[Alpha]],Tabla248[[#This Row],[Beta]]),\"ELIMINAR\")","v":"ELIMINAR"}]
[null,null,null,null,{"$f":"IF(Tabla248[[#This Row],[Costo afectado]]>0,[4]!RiskGamma(Tabla248[[#This Row],[Alpha]],Tabla248[[#This Row],[Beta]]),\"ELIMINAR\")","v":"ELIMINAR"}]
[null,null,null,null,{"$f":"IF(Tabla248[[#This Row],[Costo afectado]]>0,[4]!RiskGamma(Tabla248[[#This Row],[Alpha]],Tabla248[[#This Row],[Beta]]),\"ELIMINAR\")","v":"ELIMINAR"}]
[null,null,null,null,{"$f":"IF(Tabla248[[#This Row],[Costo afectado]]>0,[4]!RiskGamma(Tabla248[[#This Row],[Alpha]],Tabla248[[#This Row],[Beta]]),\"ELIMINAR\")","v":"ELIMINAR"}]
[null,null,null,null,{"$f":"IF(Tabla248[[#This Row],[Costo afectado]]>0,[4]!RiskGamma(Tabla248[[#This Row],[Alpha]],Tabla248[[#This Row],[Beta]]),\"ELIMINAR\")","v":"ELIMINAR"}]
[null,null,null,null,{"$f":"IF(Tabla248[[#This Row],[Costo afectado]]>0,[4]!RiskGamma(Tabla248[[#This Row],[Alpha]],Tabla248[[#This Row],[Beta]]),\"ELIMINAR\")","v":"ELIMINAR"}]
[null,null,null,null,{"$f":"IF(Tabla248[[#This Row],[Costo afectado]]>0,[4]!RiskGamma(Tabla248[[#This Row],[Alpha]],Tabla248[[#This Row],[Beta]]),\"ELIMINAR\")","v":"ELIMINAR"}]
[null,null,null,null,{"$f":"IF(Tabla248[[#This Row],[Costo afectado]]>0,[4]!RiskGamma(Tabla248[[#This Row],[Alpha]],Tabla248[[#This Row],[Beta]]),\"ELIMINAR\")","v":"ELIMINAR"}]
[null,null,null,null,{"$f":"IF(Tabla248[[#This Row],[Costo afectado]]>0,[4]!RiskGamma(Tabla248[[#This Row],[Alpha]],Tabla248[[#This Row],[Beta]]),\"ELIMINAR\")","v":"ELIMINAR"}]
[null,null,null,null,{"$f":"IF(Tabla248[[#This Row],[Costo afectado]]>0,[4]!RiskGamma(Tabla248[[#This Row],[Alpha]],Tabla248[[#This Row],[Beta]]),\"ELIMINAR\")","v":"ELIMINAR"}]
[null,null,null,null,{"$f":"IF(Tabla248[[#This Row],[Costo afectado]]>0,[4]!RiskGamma(Tabla248[[#This Row],[Alpha]],Tabla248[[#This Row],[Beta]]),\"ELIMINAR\")","v":"ELIMINAR"}]
[null,null,null,null,{"$f":"IF(Tabla248[[#This Row],[Costo afectado]]>0,[4]!RiskGamma(Tabla248[[#This Row],[Alpha]],Tabla248[[#This Row],[Beta]]),\"ELIMINAR\")","v":"ELIMINAR"}]
[null,null,null,null,{"$f":"IF(Tabla248[[#This Row],[Costo afectado]]>0,[4]!RiskGamma(Tabla248[[#This Row],[Alpha]],Tabla248[[#This Row],[Beta]]),\"ELIMINAR\")","v":"ELIMINAR"}]
[null,null,null,null,{"$f":"IF(Tabla248[[#This Row],[Costo afectado]]>0,[4]!RiskGamma(Tabla248[[#This Row],[Alpha]],Tabla248[[#This Row],[Beta]]),\"ELIMINAR\")","v":"ELIMINAR"}]
[null,null,null,null,{"$f":"IF(Tabla248[[#This Row],[Costo afectado]]>0,[4]!RiskGamma(Tabla248[[#This Row],[Alpha]],Tabla248[[#This Row],[Beta]]),\"ELIMINAR\")","v":"ELIMINAR"}]

{"sheet":"D.Pert","index":11,"n_rows":21,"n_cols":6,"rows_kept":21,"cut":false,"hidden":true,"merged":[]}
["Riesgo","Costo afectado","Mínimo","Moda","Máximo","Costo Esperado"]
[null,null,null,null,null,{"$f":"IF(Tabla249[[#This Row],[Costo afectado]]>0,[4]!RiskPert(Tabla249[[#This Row],[Mínimo]],Tabla249[[#This Row],[Moda]],Tabla249[[#This Row],[Máximo]]),\"ELIMINAR\")","v":"ELIMINAR"}]
[null,null,null,null,null,{"$f":"IF(Tabla249[[#This Row],[Costo afectado]]>0,[4]!RiskPert(Tabla249[[#This Row],[Mínimo]],Tabla249[[#This Row],[Moda]],Tabla249[[#This Row],[Máximo]]),\"ELIMINAR\")","v":"ELIMINAR"}]
[null,null,null,null,null,{"$f":"IF(Tabla249[[#This Row],[Costo afectado]]>0,[4]!RiskPert(Tabla249[[#This Row],[Mínimo]],Tabla249[[#This Row],[Moda]],Tabla249[[#This Row],[Máximo]]),\"ELIMINAR\")","v":"ELIMINAR"}]
[null,null,null,null,null,{"$f":"IF(Tabla249[[#This Row],[Costo afectado]]>0,[4]!RiskPert(Tabla249[[#This Row],[Mínimo]],Tabla249[[#This Row],[Moda]],Tabla249[[#This Row],[Máximo]]),\"ELIMINAR\")","v":"ELIMINAR"}]
[null,null,null,null,null,{"$f":"IF(Tabla249[[#This Row],[Costo afectado]]>0,[4]!RiskPert(Tabla249[[#This Row],[Mínimo]],Tabla249[[#This Row],[Moda]],Tabla249[[#This Row],[Máximo]]),\"ELIMINAR\")","v":"ELIMINAR"}]
[null,null,null,null,null,{"$f":"IF(Tabla249[[#This Row],[Costo afectado]]>0,[4]!RiskPert(Tabla249[[#This Row],[Mínimo]],Tabla249[[#This Row],[Moda]],Tabla249[[#This Row],[Máximo]]),\"ELIMINAR\")","v":"ELIMINAR"}]
[null,null,null,null,null,{"$f":"IF(Tabla249[[#This Row],[Costo afectado]]>0,[4]!RiskPert(Tabla249[[#This Row],[Mínimo]],Tabla249[[#This Row],[Moda]],Tabla249[[#This Row],[Máximo]]),\"ELIMINAR\")","v":"ELIMINAR"}]
[null,null,null,null,null,{"$f":"IF(Tabla249[[#This Row],[Costo afectado]]>0,[4]!RiskPert(Tabla249[[#This Row],[Mínimo]],Tabla249[[#This Row],[Moda]],Tabla249[[#This Row],[Máximo]]),\"ELIMINAR\")","v":"ELIMINAR"}]
[null,null,null,null,null,{"$f":"IF(Tabla249[[#This Row],[Costo afectado]]>0,[4]!RiskPert(Tabla249[[#This Row],[Mínimo]],Tabla249[[#This Row],[Moda]],Tabla249[[#This Row],[Máximo]]),\"ELIMINAR\")","v":"ELIMINAR"}]
[null,null,null,null,null,{"$f":"IF(Tabla249[[#This Row],[Costo afectado]]>0,[4]!RiskPert(Tabla249[[#This Row],[Mínimo]],Tabla249[[#This Row],[Moda]],Tabla249[[#This Row],[Máximo]]),\"ELIMINAR\")","v":"ELIMINAR"}]
[null,null,null,null,null,{"$f":"IF(Tabla249[[#This Row],[Costo afectado]]>0,[4]!RiskPert(Tabla249[[#This Row],[Mínimo]],Tabla249[[#This Row],[Moda]],Tabla249[[#This Row],[Máximo]]),\"ELIMINAR\")","v":"ELIMINAR"}]
[null,null,null,null,null,{"$f":"IF(Tabla249[[#This Row],[Costo afectado]]>0,[4]!RiskPert(Tabla249[[#This Row],[Mínimo]],Tabla249[[#This Row],[Moda]],Tabla249[[#This Row],[Máximo]]),\"ELIMINAR\")","v":"ELIMINAR"}]
[null,null,null,null,null,{"$f":"IF(Tabla249[[#This Row],[Costo afectado]]>0,[4]!RiskPert(Tabla249[[#This Row],[Mínimo]],Tabla249[[#This Row],[Moda]],Tabla249[[#This Row],[Máximo]]),\"ELIMINAR\")","v":"ELIMINAR"}]
[null,null,null,null,null,{"$f":"IF(Tabla249[[#This Row],[Costo afectado]]>0,[4]!RiskPert(Tabla249[[#This Row],[Mínimo]],Tabla249[[#This Row],[Moda]],Tabla249[[#This Row],[Máximo]]),\"ELIMINAR\")","v":"ELIMINAR"}]
[null,null,null,null,null,{"$f":"IF(Tabla249[[#This Row],[Costo afectado]]>0,[4]!RiskPert(Tabla249[[#This Row],[Mínimo]],Tabla249[[#This Row],[Moda]],Tabla249[[#This Row],[Máximo]]),\"ELIMINAR\")","v":"ELIMINAR"}]
[null,null,null,null,null,{"$f":"IF(Tabla249[[#This Row],[Costo afectado]]>0,[4]!RiskPert(Tabla249[[#This Row],[Mínimo]],Tabla249[[#This Row],[Moda]],Tabla249[[#This Row],[Máximo]]),\"ELIMINAR\")","v":"ELIMINAR"}]
[null,null,null,null,null,{"$f":"IF(Tabla249[[#This Row],[Costo afectado]]>0,[4]!RiskPert(Tabla249[[#This Row],[Mínimo]],Tabla249[[#This Row],[Moda]],Tabla249[[#This Row],[Máximo]]),\"ELIMINAR\")","v":"ELIMINAR"}]
[null,null,null,null,null,{"$f":"IF(Tabla249[[#This Row],[Costo afectado]]>0,[4]!RiskPert(Tabla249[[#This Row],[Mínimo]],Tabla249[[#This Row],[Moda]],Tabla249[[#This Row],[Máximo]]),\"ELIMINAR\")","v":"ELIMINAR"}]
[null,null,null,null,null,{"$f":"IF(Tabla249[[#This Row],[Costo afectado]]>0,[4]!RiskPert(Tabla249[[#This Row],[Mínimo]],Tabla249[[#This Row],[Moda]],Tabla249[[#This Row],[Máximo]]),\"ELIMINAR\")","v":"ELIMINAR"}]
[null,null,null,null,null,{"$f":"IF(Tabla249[[#This Row],[Costo afectado]]>0,[4]!RiskPert(Tabla249[[#This Row],[Mínimo]],Tabla249[[#This Row],[Moda]],Tabla249[[#This Row],[Máximo]]),\"ELIMINAR\")","v":"ELIMINAR"}]

{"sheet":"D.Uniforme","index":12,"n_rows":21,"n_cols":5,"rows_kept":21,"cut":false,"hidden":true,"merged":[]}
["Riesgo","Costo afectado","Mínimo","Máximo","Costo Esperado"]
[null,null,null,null,{"$f":"IF(Tabla24910[[#This Row],[Costo afectado]]>0,[4]!RiskUniform(Tabla24910[[#This Row],[Mínimo]],Tabla24910[[#This Row],[Máximo]]),\"ELIMINAR\")","v":"ELIMINAR"}]
[null,null,null,null,{"$f":"IF(Tabla24910[[#This Row],[Costo afectado]]>0,[4]!RiskUniform(Tabla24910[[#This Row],[Mínimo]],Tabla24910[[#This Row],[Máximo]]),\"ELIMINAR\")","v":"ELIMINAR"}]
[null,null,null,null,{"$f":"IF(Tabla24910[[#This Row],[Costo afectado]]>0,[4]!RiskUniform(Tabla24910[[#This Row],[Mínimo]],Tabla24910[[#This Row],[Máximo]]),\"ELIMINAR\")","v":"ELIMINAR"}]
[null,null,null,null,{"$f":"IF(Tabla24910[[#This Row],[Costo afectado]]>0,[4]!RiskUniform(Tabla24910[[#This Row],[Mínimo]],Tabla24910[[#This Row],[Máximo]]),\"ELIMINAR\")","v":"ELIMINAR"}]
[null,null,null,null,{"$f":"IF(Tabla24910[[#This Row],[Costo afectado]]>0,[4]!RiskUniform(Tabla24910[[#This Row],[Mínimo]],Tabla24910[[#This Row],[Máximo]]),\"ELIMINAR\")","v":"ELIMINAR"}]
[null,null,null,null,{"$f":"IF(Tabla24910[[#This Row],[Costo afectado]]>0,[4]!RiskUniform(Tabla24910[[#This Row],[Mínimo]],Tabla24910[[#This Row],[Máximo]]),\"ELIMINAR\")","v":"ELIMINAR"}]
[null,null,null,null,{"$f":"IF(Tabla24910[[#This Row],[Costo afectado]]>0,[4]!RiskUniform(Tabla24910[[#This Row],[Mínimo]],Tabla24910[[#This Row],[Máximo]]),\"ELIMINAR\")","v":"ELIMINAR"}]
[null,null,null,null,{"$f":"IF(Tabla24910[[#This Row],[Costo afectado]]>0,[4]!RiskUniform(Tabla24910[[#This Row],[Mínimo]],Tabla24910[[#This Row],[Máximo]]),\"ELIMINAR\")","v":"ELIMINAR"}]
[null,null,null,null,{"$f":"IF(Tabla24910[[#This Row],[Costo afectado]]>0,[4]!RiskUniform(Tabla24910[[#This Row],[Mínimo]],Tabla24910[[#This Row],[Máximo]]),\"ELIMINAR\")","v":"ELIMINAR"}]
[null,null,null,null,{"$f":"IF(Tabla24910[[#This Row],[Costo afectado]]>0,[4]!RiskUniform(Tabla24910[[#This Row],[Mínimo]],Tabla24910[[#This Row],[Máximo]]),\"ELIMINAR\")","v":"ELIMINAR"}]
[null,null,null,null,{"$f":"IF(Tabla24910[[#This Row],[Costo afectado]]>0,[4]!RiskUniform(Tabla24910[[#This Row],[Mínimo]],Tabla24910[[#This Row],[Máximo]]),\"ELIMINAR\")","v":"ELIMINAR"}]
[null,null,null,null,{"$f":"IF(Tabla24910[[#This Row],[Costo afectado]]>0,[4]!RiskUniform(Tabla24910[[#This Row],[Mínimo]],Tabla24910[[#This Row],[Máximo]]),\"ELIMINAR\")","v":"ELIMINAR"}]
[null,null,null,null,{"$f":"IF(Tabla24910[[#This Row],[Costo afectado]]>0,[4]!RiskUniform(Tabla24910[[#This Row],[Mínimo]],Tabla24910[[#This Row],[Máximo]]),\"ELIMINAR\")","v":"ELIMINAR"}]
[null,null,null,null,{"$f":"IF(Tabla24910[[#This Row],[Costo afectado]]>0,[4]!RiskUniform(Tabla24910[[#This Row],[Mínimo]],Tabla24910[[#This Row],[Máximo]]),\"ELIMINAR\")","v":"ELIMINAR"}]
[null,null,null,null,{"$f":"IF(Tabla24910[[#This Row],[Costo afectado]]>0,[4]!RiskUniform(Tabla24910[[#This Row],[Mínimo]],Tabla24910[[#This Row],[Máximo]]),\"ELIMINAR\")","v":"ELIMINAR"}]
[null,null,null,null,{"$f":"IF(Tabla24910[[#This Row],[Costo afectado]]>0,[4]!RiskUniform(Tabla24910[[#This Row],[Mínimo]],Tabla24910[[#This Row],[Máximo]]),\"ELIMINAR\")","v":"ELIMINAR"}]
[null,null,null,null,{"$f":"IF(Tabla24910[[#This Row],[Costo afectado]]>0,[4]!RiskUniform(Tabla24910[[#This Row],[Mínimo]],Tabla24910[[#This Row],[Máximo]]),\"ELIMINAR\")","v":"ELIMINAR"}]
[null,null,null,null,{"$f":"IF(Tabla24910[[#This Row],[Costo afectado]]>0,[4]!RiskUniform(Tabla24910[[#This Row],[Mínimo]],Tabla24910[[#This Row],[Máximo]]),\"ELIMINAR\")","v":"ELIMINAR"}]
[null,null,null,null,{"$f":"IF(Tabla24910[[#This Row],[Costo afectado]]>0,[4]!RiskUniform(Tabla24910[[#This Row],[Mínimo]],Tabla24910[[#This Row],[Máximo]]),\"ELIMINAR\")","v":"ELIMINAR"}]
[null,null,null,null,{"$f":"IF(Tabla24910[[#This Row],[Costo afectado]]>0,[4]!RiskUniform(Tabla24910[[#This Row],[Mínimo]],Tabla24910[[#This Row],[Máximo]]),\"ELIMINAR\")","v":"ELIMINAR"}]

{"sheet":"Hoja4","index":13,"n_rows":35,"n_cols":16,"rows_kept":35,"cut":false,"hidden":true,"merged":[[21,6,21,7],[3,0,3,6],[3,8,3,10],[3,13,3,15],[4,2,4,6],[6,0,10,0]]}
[]
[]
[]
["Tabla 6. Matriz de Clasificación de Riesgos",null,null,null,null,null,null,null,"Tabla 5. Clasificación de probabilidad de ocurrencia",null,null,null,null,"Tabla 4. Clasificación de nivel de impacto"]
[null,null,"Nivel de impacto",null,null,null,null,null,"Probabilidad de ocurrencia"," Descripción ","Probabilidad",null,null,"Nivel de Impacto ","Criterio","Impacto en Porcentaje"]
[null,null,"Despreciable","Mínimo","Moderado","Severo","Crítico",null,"Muy Alto ","Es prácticamente un hecho que el riesgo ocurra durante el ciclo de vida del proyecto",0.95,null,null," Crítico","Cualquier impacto que podría llevar a la cancelación o interrupción del proyecto ",0.6]
["Probabilidad de ocurrencia","Muy alto","Bajo","Medio","Alto","Alto","Muy alto",null,"Alto ","Es probable que el riesgo ocurra durante el ciclo de vida del proyecto ",0.75,null,null,"Severo","Cualquier impacto que coloque en peligro el objetivo del proyecto o que puedan llevar a un impacto significativo en el largo plazo ",0.2]
[null,"Alto","Bajo","Medio","Alto","Alto","Muy alto",null,"Moderado ","Puede o no ocurrir el riesgo ocurra durante el ciclo de vida del proyecto ",0.5,null,null,"Moderado","Cualquier impacto que causaría un cambio en la planificación de manera significativa o que podría conducir a un efecto notable e inoportuno para el proyecto",0.1]
[null,"Moderado","Bajo","Medio","Medio","Alto","Muy alto",null,"Bajo","Es improbable que el riesgo ocurra durante el ciclo de vida del proyecto",0.25,null,null,"Mínimo","Cualquier impacto que puede ser tratado al interior del equipo de proyecto y que no tendría ningún efecto en el largo plazo",0.05]
[null,"Bajo","Muy bajo","Bajo","Medio","Medio","Alto",null,"Muy Bajo","Es muy difícil que el riesgo ocurra durante el ciclo de vida del proyecto ",0.05,null,null,"Despreciable","Cualquier impacto que afecta de manera insignificante o produce algún efecto adverso significativo sobre el ciclo de vida del proyecto",0.01]
[null,"Muy bajo","Muy bajo","Muy bajo","Bajo","Bajo","Medio"]
[]
[null,null,"Despreciable","Mínimo","Moderado","Severo","Crítico"]
[null,"Muy alto",{"$f":"K6*$P$10","v":9.4999999999999998E-3},{"$f":"K6*$P$9","v":4.7500000000000001E-2},{"$f":"K6*$P$8","v":9.5000000000000001E-2},{"$f":"K6*$P$7","v":0.19},{"$f":"K6*$P$6","v":0.56999999999999995}]
[null,"Alto",{"$f":"K7*$P$10","v":7.4999999999999997E-3},{"$f":"K7*$P$9","v":3.7500000000000006E-2},{"$f":"K7*$P$8","v":7.5000000000000011E-2},{"$f":"K7*$P$7","v":0.15000000000000002},{"$f":"K7*$P$6","v":0.44999999999999996}]
[null,"Moderado",{"$f":"K8*$P$10","v":5.0000000000000001E-3},{"$f":"K8*$P$9","v":2.5000000000000001E-2},{"$f":"K8*$P$8","v":0.05},{"$f":"K8*$P$7","v":0.1},{"$f":"K8*$P$6","v":0.3}]
[null,"Bajo",{"$f":"K9*$P$10","v":2.5000000000000001E-3},{"$f":"K9*$P$9","v":1.2500000000000001E-2},{"$f":"K9*$P$8","v":2.5000000000000001E-2},{"$f":"K9*$P$7","v":0.05},{"$f":"K9*$P$6","v":0.15}]
[null,"Muy bajo",{"$f":"K10*$P$10","v":5.0000000000000001E-4},{"$f":"K10*$P$9","v":2.5000000000000005E-3},{"$f":"K10*$P$8","v":5.000000000000001E-3},{"$f":"K10*$P$7","v":1.0000000000000002E-2},{"$f":"K10*$P$6","v":0.03}]
[]
[null,null,"L. Inferior","L. Superior"]
[null,"Muy alto",0.3,1]
[null,"Alto",7.4999999999999997E-2,0.2999,null,null,"Clasificación"]
[null,"Medio",2.5000000000000001E-2,7.4899999999999994E-2,null,null,"Muy alto","≥30%"]
[null,"Bajo",5.0000000000000001E-3,2.4899999999999999E-2,null,null,"Alto","≥10% <30%"]
[null,"Muy bajo",0,4.8999999999999998E-3,null,null,"Medio","≥2,5% <10%"]
[null,null,null,null,null,null,"Bajo","≥0,5% <2,5%"]
[null,null,null,null,null,null,"Muy bajo","<0,5%"]
[]
[]
[null,null,null,null,null,null,null,null,null,null,"Probabilidad de ocurrencia","Probabilidad Porcentual","Detalle"]
[null,null,null,null,null,null,null,null,null,null,"Muy Alto","≤95%","Posee una alta probabilidad de que el riesgo ocurra durante el ciclo de vida del proyecto"]
[null,null,null,null,null,null,null,null,null,null,"Alto","≤75%>95%","Es probable que el riesgo ocurra durante el ciclo de vida del proyecto"]
[null,null,null,null,null,null,null,null,null,null,"Moderado","≤50%>75%","Es medianamente probable que el riesgo ocurra durante el ciclo de vida del proyecto"]
[null,null,null,null,null,null,null,null,null,null,"Bajo","≤25%>50%","Es muy poco probable que el riesgo ocurra durante el ciclo de vida del proyecto"]
[null,null,null,null,null,null,null,null,null,null,"Muy Bajo",">5%>25%","Es muy difícil que el riesgo ocurra durante el ciclo de vida del proyecto"]

{"sheet":"Hoja3","index":14,"n_rows":324,"n_cols":6,"rows_kept":324,"cut":false,"hidden":true,"merged":[]}
["Etapa","Asignación","Distribuciones de probabilidad","Tipos de riesgo","Sector","Instituciones"]
["Perfil","Retenido","Triangular","Riesgo de la etapa de diseño","Trabajo y seguridad social","Academia Nacional de Ciencias"]
["Prefactibilidad","Transferido","Normal Estándar","Riesgo en etapa de construcción","Desarrollo humano e inclusión social","Agencia de Protección de Datos de los Habitantes (PRODHAB)"]
["Factibilidad","Compartido","LogNormal","Riesgo de expropiación de terrenos","Desarrollo agropecuario y rural","Agencia Espacial Costarricense (AEC)"]
["Diseño",null,"Erlang","Riesgo geológico / geotécnico","Educativo","Auditoría General de Servicios de Salud"]
["Financiamiento",null,"Exponencial","Riesgo de afectación al ecosistema","Salud, nutrición y deporte","Autoridad Reguladora de los Servicios Públicos (ARESEP)"]
["Licitación y contratación",null,"Gamma","Riesgo arqueológico","Ambiente, energía, mares y ordenamiento territorial","Banco Central de Costa Rica (BCCR)"]
["Pre ejecución",null,"Pert","Riesgos vinculados al proceso de obtención de permisos y licencias","Hacienda pública, monetario y supervisión financiera","Banco de Costa Rica (BCR)"]
["Ejecución",null,"Uniforme","Riesgo de infraestructura existente transferida","Cultura y juventud","Banco Hipotecario de la Vivienda (BANHVI)"]
["Pre operación",null,null,"Riesgo por inversiones adicionales","Transporte e infraestructura","Banco Nacional de Costa Rica (BNCR)"]
["Operación",null,null,"Riesgo de financiamiento","Seguridad ciudadana y justicia","Banco Popular y de Desarrollo Comunal (BPDC)"]
[null,null,null,"Riesgo de tasa de interés","Ciencia, tecnología, telecomunicaciones y gobernanza digital","BCR Corredora de Seguros S.A."]
[null,null,null,"Riesgo de ingresos ","Economía, industria y comercio","BCR Pensión Operadora de Planes de Pensiones Complementarias S.A."]
[null,null,null,"Riesgo de subestimación de costos de mantenimiento ","Política internacional","BCR Sociedad Administradora de Fondos de Inversión S.A. (SAFI)"]
[null,null,null,"Riesgo por terminación anticipada del contrato ","Vivienda y asentamientos humanos","BCR Valores Puesto de Bolsa S.A."]
[null,null,null,"Riesgo de tipo de cambio ","Comercio exterior","Benemérito Cuerpo de Bomberos de C.R "]
[null,null,null,"Riesgos de fuerza mayor ","Turismo","BN Sociedad Administradora de Fondos de Inversión S.A."]
[null,null,null,"Riesgos regulatorios o normativos ",null,"BN Sociedad Corredora de Seguros S.A."]
[null,null,null,"Riesgo político / riesgo de impago ",null,"BN Valores Puesto de Bolsa S.A."]
[null,null,null,"Riesgo de inflación ",null,"BN Vital Operadora de Planes de Pensiones Complementarias S.A."]
[null,null,null,"Riesgo a la integridad pública",null,"Caja Costarricense de Seguro Social (CCSS)"]
[null,null,null,"Riesgo de operación",null,"Casa de la Cultura de Puntarenas"]
[null,null,null,"Riesgo de Información",null,"Centro Costarricense de Producción Cinematográfica"]
[null,null,null,"Riesgo de obsolescencia ",null,"Centro Cultural e Histórico José Figueres Ferrer"]
[null,null,null,"Riesgos Tecnológicos",null,"Centro Histórico de la Reforma Agraria de Costa Rica y el Parque Temático"]
[null,null,null,null,null,"Centro Nacional de la Música"]
[null,null,null,null,null,"Colegio de Abogados"]
[null,null,null,null,null,"Colegio de Biólogos"]
[null,null,null,null,null,"Colegio de Ciencias Económicas de Costa Rica"]
[null,null,null,null,null,"Colegio de Cirujanos Dentistas de Costa Rica"]
[null,null,null,null,null,"Colegio de Contadores Privados de Costa Rica"]
[null,null,null,null,null,"Colegio de Contadores Públicos de Costa Rica"]
[null,null,null,null,null,"Colegio de Enfermeras de Costa Rica"]
[null,null,null,null,null,"Colegio de Farmacéuticos"]
[null,null,null,null,null,"Colegio de Físicos"]
[null,null,null,null,null,"Colegio de Geólogos"]
[null,null,null,null,null,"Colegio de Ingenieros Agrónomos de Costa Rica"]
[null,null,null,null,null,"Colegio de Ingenieros Químicos y Profesionales Afines"]
[null,null,null,null,null,"Colegio de Licenciados y Profesores en Letras, Filosofía, Ciencias y Artes (COLYPRO)"]
[null,null,null,null,null,"Colegio de Médicos Veterinarios"]
[null,null,null,null,null,"Colegio de Médicos y Cirujanos"]
[null,null,null,null,null,"Colegio de Microbiólogos y Químicos Clínicos de Costa Rica"]
[null,null,null,null,null,"Colegio de Optometristas de Costa Rica"]
[null,null,null,null,null,"Colegio de Periodistas de Costa Rica"]
[null,null,null,null,null,"Colegio de Profesionales en Bibliotecología de Costa Rica"]
[null,null,null,null,null,"Colegio de Profesionales en Ciencias Políticas y Relaciones Internacionales"]
[null,null,null,null,null,"Colegio de Profesionales en Criminología de Costa Rica"]
[null,null,null,null,null,"Colegio de Profesionales en Geografía"]
[null,null,null,null,null,"Colegio de Profesionales en Informática y Computación"]
[null,null,null,null,null,"Colegio de Profesionales en Nutrición"]
[null,null,null,null,null,"Colegio de Profesionales en Orientación"]
[null,null,null,null,null,"Colegio de Profesionales en Quiropráctica"]
[null,null,null,null,null,"Colegio de Profesionales en Secretariado de Costa Rica"]
[null,null,null,null,null,"Colegio de Profesionales en Sociología de Costa Rica"]
[null,null,null,null,null,"Colegio de Químicos de Costa Rica"]
[null,null,null,null,null,"Colegio de Terapeutas"]
[null,null,null,null,null,"Colegio de Trabajadores Sociales"]
[null,null,null,null,null,"Colegio Federado de Ingenieros y Arquitectos (CFIA)"]
[null,null,null,null,null,"Colegio Profesional de Psicólogos de Costa Rica"]
[null,null,null,null,null,"Colegio San Luis Gonzaga de Cartago"]
[null,null,null,null,null,"Colegio Universitario de Cartago (CUC)"]
[null,null,null,null,null,"Colegio Universitario de Limón (CUNLIMON)"]
[null,null,null,null,null,"Comisión Costarricense de Cooperación con UNESCO"]
[null,null,null,null,null,"Comisión de Energía Atómica (CEA)"]
[null,null,null,null,null,"Comisión de Ordenamiento y Manejo de la Cuenca Alta del Río Reventazón (COMCURE)"]
[null,null,null,null,null,"Comisión Interinstitucional de Marinas y Atracaderos turísticos (CIMAT)"]
[null,null,null,null,null,"Comisión Nacional de Asuntos Indígenas (CONAI)"]
[null,null,null,null,null,"Comisión Nacional de Préstamos para la Educación (CONAPE)"]
[null,null,null,null,null,"Comisión Nacional de Prevención de Riesgos y Atención de Emergencias (CNE)"]
[null,null,null,null,null,"Comisión Nacional de Vacunación y Epidemiología"]
[null,null,null,null,null,"Comisión Nacional del Consumidor (CNC)"]
[null,null,null,null,null,"Comisión Nacional Interinstitucional para atender a las mujeres en condiciones de pobreza"]
[null,null,null,null,null,"Comisión Nacional para la Gestión de la Biodiversidad (CONAGEBIO)"]
[null,null,null,null,null,"Comisión para Promover la Competencia (COPROCOM)"]
[null,null,null,null,null,"Comisión Reguladora de Turismo"]
[null,null,null,null,null,"Compañía Nacional de Fuerza y Luz S. A. (CNFL)"]
[null,null,null,null,null,"Concejo Municipal de Distrito de Cervantes"]
[null,null,null,null,null,"Concejo Municipal de Distrito de Cóbano"]
[null,null,null,null,null,"Concejo Municipal de Distrito de Colorado"]
[null,null,null,null,null,"Concejo Municipal de Distrito de Lepanto"]
[null,null,null,null,null,"Concejo Municipal de Distrito de Monteverde"]
[null,null,null,null,null,"Concejo Municipal de Distrito de Paquera"]
[null,null,null,null,null,"Concejo Municipal de Distrito de Peñas Blancas"]
[null,null,null,null,null,"Concejo Municipal de Distrito de Tucurrique"]
[null,null,null,null,null,"Consejo de Seguridad Vial (COSEVI)"]
[null,null,null,null,null,"Consejo de Transporte Público (CTP)"]
[null,null,null,null,null,"Consejo Interinstitucional de Atención a la Madre Adolescente"]
[null,null,null,null,null,"Consejo Nacional de Clubes 4-S (CONAC)"]
[null,null,null,null,null,"Consejo Nacional de Concesiones (CNC)"]
[null,null,null,null,null,"Consejo Nacional de Cooperativas (CONACOOP)"]
[null,null,null,null,null,"Consejo Nacional de Enseñanza Superior Universitaria Privada (CONESUP)"]
[null,null,null,null,null,"Consejo Nacional de Investigación en Salud (CONIS)"]
[null,null,null,null,null,"Consejo Nacional de la Persona Adulta Mayor (CONAPAM)"]
[null,null,null,null,null,"Consejo Nacional de Personas con Discapacidad (CONAPDIS)"]
[null,null,null,null,null,"Consejo Nacional de Política Pública de la Persona Joven"]
[null,null,null,null,null,"Consejo Nacional de Producción (CNP)"]
[null,null,null,null,null,"Consejo Nacional de Salarios"]
[null,null,null,null,null,"Consejo Nacional de Supervisión del Sistema Financiero (CONASSIF)"]
[null,null,null,null,null,"Consejo Nacional de Vialidad (CONAVI)"]
[null,null,null,null,null,"Consejo Técnico de Asistencia Médico Social (CTAMS)"]
[null,null,null,null,null,"Consejo Técnico de Aviación Civil (CETAC)"]
[null,null,null,null,null,"Contraloría General de la República (CGR)"]
[null,null,null,null,null,"Corporación Arrocera Nacional (CONARROZ)"]
[null,null,null,null,null,"Corporación Bananera Nacional S.A. (CORBANA)"]
[null,null,null,null,null,"Corporación Ganadera Nacional (CORFOGA)"]
[null,null,null,null,null,"Corporación Hortícola Nacional"]
[null,null,null,null,null,"Correos de Costa Rica S.A."]
[null,null,null,null,null,"Defensoría de los Habitantes de la República (DHR)"]
[null,null,null,null,null,"Dirección General de Migración y Extranjería (DGME)"]
[null,null,null,null,null,"Dirección General de Servicio Civil (DGSC)"]
[null,null,null,null,null,"Dirección General del Archivo Nacional"]
[null,null,null,null,null,"Dirección Nacional de Centros de Educación y Nutrición y de Centros Infantiles de Atención Integral (CEN-CINAI)"]
[null,null,null,null,null,"Dirección Nacional de Desarrollo de la Comunidad (DINADECO)"]
[null,null,null,null,null,"Dirección Nacional de Notariado (DNN)"]
[null,null,null,null,null,"Editorial Costa Rica (ECR)"]
[null,null,null,null,null,"Empresa de Servicios Públicos de Heredia S.A. (ESPH)"]
[null,null,null,null,null,"Ente Costarricense de Acreditación (ECA)"]
[null,null,null,null,null,"Fondo de Apoyo para la Educación Superior y Técnica del Puntarenense"]
[null,null,null,null,null,"Fondo de Desarrollo de la Provincia de Limón (FODELI)"]
[null,null,null,null,null,"Fondo Nacional de Becas de Solidaridad Social"]
[null,null,null,null,null,"Fondo Nacional de Estabilización Cafetalera (FONECAFE)"]
[null,null,null,null,null,"Fondo Nacional de Financiamiento Forestal (FONAFIFO)"]
[null,null,null,null,null,"Fondo Nacional de Sostenibilidad Cafetalera (FONASCAFE)"]
[null,null,null,null,null,"Gestión de Cobro ICE. S.A"]
[null,null,null,null,null,"INS Servicios S.A."]
[null,null,null,null,null,"INS Sociedad Administradora de Fondos de Inversión S.A. (INS-SAFI)"]
[null,null,null,null,null,"INS Valores Puesto de Bolsa S.A."]
[null,null,null,null,null,"INS-Red de Servicios de Salud"]
[null,null,null,null,null,"Instituto Centroamericano de Extensión de la Cultura (ICECU)"]
[null,null,null,null,null,"Instituto Costarricense de Acueductos y Alcantarillados (AyA)"]
[null,null,null,null,null,"Instituto Costarricense de Deporte y la Recreación (ICODER)"]
[null,null,null,null,null,"Instituto Costarricense de Electricidad (ICE)"]
[null,null,null,null,null,"Instituto Costarricense de Ferrocarriles (INCOFER)"]
[null,null,null,null,null,"Instituto Costarricense de Investigación y Enseñanza en Nutrición y Salud (INCIENSA)"]
[null,null,null,null,null,"Instituto Costarricense de Pesca y Acuicultura (INCOPESCA)"]
[null,null,null,null,null,"Instituto Costarricense de Puertos del Pacífico (INCOP)"]
[null,null,null,null,null,"Instituto Costarricense de Turismo (ICT)"]
[null,null,null,null,null,"Instituto Costarricense Sobre Drogas (ICD)"]
[null,null,null,null,null,"Instituto de Desarrollo Profesional Uladislao Gámez Solano"]
[null,null,null,null,null,"Instituto de Desarrollo Rural (INDER)"]
[null,null,null,null,null,"Instituto de Fomento y Asesoría Municipal (IFAM)"]
[null,null,null,null,null,"Instituto del Café de Costa Rica (ICAFE)"]
[null,null,null,null,null,"Instituto Mixto de Ayuda Social (IMAS)"]
[null,null,null,null,null,"Instituto Nacional de Aprendizaje (INA)"]
[null,null,null,null,null,"Instituto Nacional de Estadística y Censos (INEC)"]
[null,null,null,null,null,"Instituto Nacional de Fomento Cooperativo (INFOCOOP)"]
[null,null,null,null,null,"Instituto Nacional de Innovación y Transferencia en Tecnología Agropecuaria (INTA)"]
[null,null,null,null,null,"Instituto Nacional de las Mujeres (INAMU)"]
[null,null,null,null,null,"Instituto Nacional de Seguros (INS)"]
[null,null,null,null,null,"Instituto Nacional de Vivienda y Urbanismo (INVU)"]
[null,null,null,null,null,"Instituto sobre Alcoholismo y Farmacodependencia (IAFA)"]
[null,null,null,null,null,"Instituto Tecnológico de Costa Rica (ITCR)"]
[null,null,null,null,null,"Junta Administrativa de la Imprenta Nacional"]
[null,null,null,null,null,"Junta Administrativa del Registro Nacional"]
[null,null,null,null,null,"Junta Administrativa del Servicio Eléctrico Municipal de Cartago (JASEC)"]
[null,null,null,null,null,"Junta de Administración Portuaria y de Desarrollo Económico de la Vertiente Atlántica (JAPDEVA)"]
[null,null,null,null,null,"Junta de Desarrollo Regional de la Zona Sur (JUDESUR)"]
[null,null,null,null,null,"Junta de Pensiones y Jubilaciones del Magisterio Nacional (JUPEMA)"]
[null,null,null,null,null,"Junta de Protección Social (JPS)"]
[null,null,null,null,null,"Junta Directiva del Parque Nacional Isla San Lucas"]
[null,null,null,null,null,"Junta Directiva para el fideicomiso del Parque Nacional Manuel Antonio"]
[null,null,null,null,null,"Junta Promotora de Turismo de la Ciudad de Puntarenas"]
[null,null,null,null,null,"Laboratorio Costarricense de Metrología (LACOMET)"]
[null,null,null,null,null,"Liga Agrícola Industrial de la Caña de Azúcar (LAICA)"]
[null,null,null,null,null,"Mecanismo Nacional de Prevención contra la Tortura y otros tratos o penas crueles, inhumanos y degradantes"]
[null,null,null,null,null,"Ministerio de Agricultura y Ganadería (MAG)"]
[null,null,null,null,null,"Ministerio de Ambiente y Energía (MINAE)"]
[null,null,null,null,null,"Ministerio de Ciencia, Innovación, Tecnología y Telecomunicaciones (MICITT)"]
[null,null,null,null,null,"Ministerio de Comercio Exterior (COMEX)"]
[null,null,null,null,null,"Ministerio de Cultura y Juventud (MCJ)"]
[null,null,null,null,null,"Ministerio de Economía Industria y Comercio (MEIC)"]
[null,null,null,null,null,"Ministerio de Educación Pública (MEP)"]
[null,null,null,null,null,"Ministerio de Gobernación y Policía"]
[null,null,null,null,null,"Ministerio de Hacienda"]
[null,null,null,null,null,"Ministerio de Justicia y Paz"]
[null,null,null,null,null,"Ministerio de la Presidencia"]
[null,null,null,null,null,"Ministerio de Obras Públicas y Transportes (MOPT)"]
[null,null,null,null,null,"Ministerio de Planificación Nacional y Política Económica (MIDEPLAN)"]
[null,null,null,null,null,"Ministerio de Relaciones Exteriores y Culto"]
[null,null,null,null,null,"Ministerio de Salud"]
[null,null,null,null,null,"Ministerio de Seguridad Pública (MSP)"]
[null,null,null,null,null,"Ministerio de Trabajo y Seguridad Social (MTSS)"]
[null,null,null,null,null,"Ministerio de Vivienda y Asentamientos Humanos (MIVAH)"]
[null,null,null,null,null,"Municipalidad de Abangares"]
[null,null,null,null,null,"Municipalidad de Acosta"]
[null,null,null,null,null,"Municipalidad de Alajuela"]
[null,null,null,null,null,"Municipalidad de Alajuelita"]
[null,null,null,null,null,"Municipalidad de Alvarado"]
[null,null,null,null,null,"Municipalidad de Aserrí"]
[null,null,null,null,null,"Municipalidad de Atenas"]
[null,null,null,null,null,"Municipalidad de Bagaces"]
[null,null,null,null,null,"Municipalidad de Barva"]
[null,null,null,null,null,"Municipalidad de Belén"]
[null,null,null,null,null,"Municipalidad de Buenos Aires"]
[null,null,null,null,null,"Municipalidad de Cañas"]
[null,null,null,null,null,"Municipalidad de Carrillo"]
[null,null,null,null,null,"Municipalidad de Cartago"]
[null,null,null,null,null,"Municipalidad de Corredores"]
[null,null,null,null,null,"Municipalidad de Coto Brus"]
[null,null,null,null,null,"Municipalidad de Curridabat"]
[null,null,null,null,null,"Municipalidad de Desamparados"]
[null,null,null,null,null,"Municipalidad de Dota"]
[null,null,null,null,null,"Municipalidad de El Guarco"]
[null,null,null,null,null,"Municipalidad de Escazú"]
[null,null,null,null,null,"Municipalidad de Esparza"]
[null,null,null,null,null,"Municipalidad de Flores"]
[null,null,null,null,null,"Municipalidad de Garabito"]
[null,null,null,null,null,"Municipalidad de Goicoechea"]
[null,null,null,null,null,"Municipalidad de Golfito"]
[null,null,null,null,null,"Municipalidad de Grecia"]
[null,null,null,null,null,"Municipalidad de Guácimo"]
[null,null,null,null,null,"Municipalidad de Guatuso"]
[null,null,null,null,null,"Municipalidad de Heredia"]
[null,null,null,null,null,"Municipalidad de Hojancha"]
[null,null,null,null,null,"Municipalidad de Jiménez"]
[null,null,null,null,null,"Municipalidad de La Cruz"]
[null,null,null,null,null,"Municipalidad de La Unión"]
[null,null,null,null,null,"Municipalidad de León Cortés"]
[null,null,null,null,null,"Municipalidad de Liberia"]
[null,null,null,null,null,"Municipalidad de Limón"]
[null,null,null,null,null,"Municipalidad de Los Chiles"]
[null,null,null,null,null,"Municipalidad de Matina"]
[null,null,null,null,null,"Municipalidad de Montes de Oca"]
[null,null,null,null,null,"Municipalidad de Montes de Oro"]
[null,null,null,null,null,"Municipalidad de Monteverde"]
[null,null,null,null,null,"Municipalidad de Mora"]
[null,null,null,null,null,"Municipalidad de Moravia"]
[null,null,null,null,null,"Municipalidad de Nandayure"]
[null,null,null,null,null,"Municipalidad de Naranjo"]
[null,null,null,null,null,"Municipalidad de Nicoya"]
[null,null,null,null,null,"Municipalidad de Oreamuno"]
[null,null,null,null,null,"Municipalidad de Orotina"]
[null,null,null,null,null,"Municipalidad de Osa"]
[null,null,null,null,null,"Municipalidad de Palmares"]
[null,null,null,null,null,"Municipalidad de Paraíso"]
[null,null,null,null,null,"Municipalidad de Parrita"]
[null,null,null,null,null,"Municipalidad de Pérez Zeledón"]
[null,null,null,null,null,"Municipalidad de Poás"]
[null,null,null,null,null,"Municipalidad de Pococí"]
[null,null,null,null,null,"Municipalidad de Puntarenas"]
[null,null,null,null,null,"Municipalidad de Puriscal"]
[null,null,null,null,null,"Municipalidad de Quepos"]
[null,null,null,null,null,"Municipalidad de Río Cuarto"]
[null,null,null,null,null,"Municipalidad de San Carlos"]
[null,null,null,null,null,"Municipalidad de San Isidro"]
[null,null,null,null,null,"Municipalidad de San José"]
[null,null,null,null,null,"Municipalidad de San Mateo"]
[null,null,null,null,null,"Municipalidad de San Pablo"]
[null,null,null,null,null,"Municipalidad de San Rafael"]
[null,null,null,null,null,"Municipalidad de San Ramón"]
[null,null,null,null,null,"Municipalidad de Santa Ana"]
[null,null,null,null,null,"Municipalidad de Santa Bárbara"]
[null,null,null,null,null,"Municipalidad de Santa Cruz"]
[null,null,null,null,null,"Municipalidad de Santo Domingo"]
[null,null,null,null,null,"Municipalidad de Sarapiquí"]
[null,null,null,null,null,"Municipalidad de Sarchí"]
[null,null,null,null,null,"Municipalidad de Siquirres"]
[null,null,null,null,null,"Municipalidad de Talamanca"]
[null,null,null,null,null,"Municipalidad de Tarrazú"]
[null,null,null,null,null,"Municipalidad de Tibás"]
[null,null,null,null,null,"Municipalidad de Tilarán"]
[null,null,null,null,null,"Municipalidad de Turrialba"]
[null,null,null,null,null,"Municipalidad de Turrubares"]
[null,null,null,null,null,"Municipalidad de Upala"]
[null,null,null,null,null,"Municipalidad de Vázquez de Coronado"]
[null,null,null,null,null,"Municipalidad de Zarcero"]
[null,null,null,null,null,"Museo de Arte Costarricense"]
[null,null,null,null,null,"Museo de Arte y Diseño Contemporáneo"]
[null,null,null,null,null,"Museo Dr. Rafael Ángel Calderón Guardia"]
[null,null,null,null,null,"Museo Histórico Cultural Juan Santamaría"]
[null,null,null,null,null,"Museo Nacional de Costa Rica"]
[null,null,null,null,null,"Oficina de Cooperación Internacional de la Salud (OCIS)"]
[null,null,null,null,null,"Oficina Ejecutora del Proyecto Turístico Golfo de Papagayo"]
[null,null,null,null,null,"Oficina Nacional de Semillas (ONS)"]
[null,null,null,null,null,"Oficina Nacional Forestal"]
[null,null,null,null,null,"Operadora de Pensiones Complementaria y de Capitalización Laboral de la Caja Costarricense de Seguro Social S.A."]
[null,null,null,null,null,"Operadora de Planes de Pensiones Complementarias del Banco Popular y de Desarrollo Comunal S.A."]
[null,null,null,null,null,"Órgano de Normalización Técnica (ONT)"]
[null,null,null,null,null,"Parque Marino del Pacífico"]
[null,null,null,null,null,"Patronato Nacional de Ciegos (PANACI)"]
[null,null,null,null,null,"Patronato Nacional de Infancia (PANI)"]
[null,null,null,null,null,"Popular Sociedad Agencia de Seguros S.A."]
[null,null,null,null,null,"Popular Sociedad Fondos de Inversión S.A."]
[null,null,null,null,null,"Popular Valores, Puesto de Bolsa S. A."]
[null,null,null,null,null,"Presidencia de la República y sus órganos adscritos"]
[null,null,null,null,null,"Procuraduría General de la República (PGR)"]
[null,null,null,null,null,"Programa Integral de Mercadeo Agropecuario (PIMA)"]
[null,null,null,null,null,"Promotora Costarricense de Innovación e Investigación (PROINNOVA)"]
[null,null,null,null,null,"Promotora del Comercio Exterior de Costa Rica (PROCOMER)"]
[null,null,null,null,null,"Radiográfica Costarricense S.A (RACSA)"]
[null,null,null,null,null,"Refinadora Costarricense de Petróleo S.A. (RECOPE)"]
[null,null,null,null,null,"Secretaría Técnica de la Red Nacional de Cuido y Desarrollo Infantil (Redcudi)"]
[null,null,null,null,null,"Secretaría Técnica Nacional Ambiental (SETENA)"]
[null,null,null,null,null,"Servicio Fitosanitario del Estado (SFE)"]
[null,null,null,null,null,"Servicio Nacional de Aguas Subterráneas, Riego y Avenamiento (SENARA)"]
[null,null,null,null,null,"Servicio Nacional de Salud Animal (SENASA)"]
[null,null,null,null,null,"Sistema de Emergencias 9-1-1"]
[null,null,null,null,null,"Sistema Nacional de Áreas de Conservación (SINAC)"]
[null,null,null,null,null,"Sistema Nacional de Educación Musical (SINEM)"]
[null,null,null,null,null,"Sistema Nacional de Información y Registro Único de Beneficiarios del Estado (SINIRUBE)"]
[null,null,null,null,null,"Sistema Nacional de Radio y Televisión S.A. (SINART)"]
[null,null,null,null,null,"Superintendencia de Pensiones (SUPEN)"]
[null,null,null,null,null,"Superintendencia de Telecomunicaciones (SUTEL)"]
[null,null,null,null,null,"Superintendencia General de Entidades Financieras (SUGEF)"]
[null,null,null,null,null,"Superintendencia General de Seguros (SUGESE)"]
[null,null,null,null,null,"Superintendencia General de Valores (SUGEVAL)"]
[null,null,null,null,null,"Teatro Nacional (TN)"]
[null,null,null,null,null,"Teatro Popular Mélico Salazar"]
[null,null,null,null,null,"Tribunal Administrativo de Conflictos Deportivos (TRIACODE)"]
[null,null,null,null,null,"Tribunal Administrativo de la Seguridad Social del Régimen de Pensiones y Jubilaciones del Magisterio Nacional"]
[null,null,null,null,null,"Tribunal Administrativo de Transporte"]
[null,null,null,null,null,"Tribunal Administrativo del Servicio Civil"]
[null,null,null,null,null,"Tribunal Administrativo Migratorio"]
[null,null,null,null,null,"Tribunal Aduanero Nacional"]
[null,null,null,null,null,"Tribunal Ambiental Administrativo"]
[null,null,null,null,null,"Tribunal Fiscal Administrativo"]
[null,null,null,null,null,"Tribunal Registral Administrativo"]
[null,null,null,null,null,"Tribunal Supremo de Elecciones (TSE)"]
[null,null,null,null,null,"Unidad Ejecutora del Programa de Seguridad Ciudadana y Prevención de la Violencia (UEP)"]
[null,null,null,null,null,"Universidad de Costa Rica (UCR)"]
[null,null,null,null,null,"Universidad Estatal a Distancia (UNED)"]
[null,null,null,null,null,"Universidad Nacional (UNA)"]
[null,null,null,null,null,"Universidad Técnica Nacional (UTN)"]
[null,null,null,null,null,"Vida Plena Operadora de Pensiones Complementarias S.A."]

{"sheet":"Indicadores","index":15,"n_rows":35,"n_cols":8,"rows_kept":35,"cut":false,"hidden":false,"merged":[[2,1,2,3],[2,5,2,7],[10,1,10,2],[10,3,10,11],[11,1,11,2],[11,3,11,11],[12,1,12,2],[12,3,12,11],[13,1,13,2],[13,3,13,11],[14,1,14,2],[14,3,14,11],[15,1,15,2],[15,3,15,11],[16,1,16,2],[16,3,16,11],[17,1,17,2],[17,3,17,11],[18,1,18,2],[18,3,18,11],[19,1,19,2],[19,3,19,11],[20,1,20,2],[20,3,20,11],[21,1,21,2],[21,3,21,11],[22,1,22,2],[22,3,22,11],[23,1,23,2],[23,3,23,11],[24,1,24,2],[24,3,24,11],[25,1,25,2],[25,3,25,11],[26,1,26,2],[26,3,26,11],[27,1,27,2],[27,3,27,11],[28,1,28,2],[28,3,28,11],[29,1,29,2],[29,3,29,11],[34,1,34,2],[34,3,34,11],[33,1,33,2],[33,3,33,11],[30,1,30,2],[30,3,30,11],[31,1,31,2],[31,3,31,11],[32,1,32,2],[32,3,32,11]]}
[]
[]
[null,"Clasificación de nivel de riesgo",null,null,null,"Clasificación de Probabilidad de riesgo"]
[null,"Nivel de Impacto ","Criterio","Impacto en Porcentaje",null,"Probabilidad de ocurrencia"," Descripción ","Probabilidad"]
[null," Crítico","Cualquier impacto que podría llevar a la cancelación o interrupción del proyecto ","≥60%",null,"Muy Alto ","Es prácticamente un hecho que el riesgo ocurra durante el ciclo de vida del proyecto","≥95%"]
[null,"Severo","Cualquier impacto que coloque en peligro el objetivo del proyecto o que puedan llevar a un impacto significativo en el largo plazo ","≥20% <60%",null,"Alto ","Es probable que el riesgo ocurra durante el ciclo de vida del proyecto ","≥75% <95%"]
[null,"Moderado","Cualquier impacto que causaría un cambio en la planificación de manera significativa o que podría conducir a un efecto notable e inoportuno para el proyecto","≥10% <20%",null,"Moderado ","Puede o no ocurrir el riesgo ocurra durante el ciclo de vida del proyecto ","≥50% <75%"]
[null,"Mínimo","Cualquier impacto que puede ser tratado al interior del equipo de proyecto y que no tendría ningún efecto en el largo plazo","≥5% <10%",null,"Bajo","Es improbable que el riesgo ocurra durante el ciclo de vida del proyecto","≥25% <50%"]
[null,"Despreciable","Cualquier impacto que afecta de manera insignificante o produce algún efecto adverso significativo sobre el ciclo de vida del proyecto","<5%",null,"Muy Bajo","Es muy difícil que el riesgo ocurra durante el ciclo de vida del proyecto ","≥5% <25%"]
[]
[null,"Riesgos",null,"Descripción"]
[null,"Riesgo de la etapa de diseño",null,"Corresponden a errores o deficiencias en el diseño o en los estudios técnicos, que repercuten en el costo o la calidad de la infraestructura, nivel de servicio y/o que pueden provocar retrasos en la ejecución de la obra, variar las especificaciones establecidas por la Administración o generar desviaciones en la obra o servicio que repercuten en la inviabilidad del mismo.\nEn el diseño de las obras deben contemplarse todas las amenazas del proyecto incluidas las naturales, socionaturales  o antrópicas  que podrían incidir sobre el proyecto.\n"]
[null,"Riesgo en etapa de construcción",null,"Dicho riesgo está asociado a todos los eventos que pueden presentarse durante la etapa constructiva, afectando el costo o presupuesto, tiempo y calidad del proyecto."]
[null,"Riesgo de expropiación de terrenos",null,"Consiste en la no disponibilidad del predio o predios donde construir la infraestructura, provocando retrasos en el comienzo de las obras y sobrecostos en la ejecución de las mismas."]
[null,"Riesgo geológico / geotécnico",null,"El riesgo geológico/geotécnico identifica las condiciones previstas en los estudios de mecánica de suelos de la fase de formulación y/o estructuración que redunde en sobrecostos o ampliación de plazos de construcción de la infraestructura."]
[null,"Riesgo de afectación al ecosistema",null,"Corresponde al incumplimiento de la normativa ambiental y demora por subsanar las medidas definidas en la aprobación de los estudios ambientales. El primer efecto derivado del incumplimiento de la normativa ambiental es el propio daño ambiental, el que adicionalmente ocasionará paralizaciones de la obra con los consiguientes sobrecostos y demoras, así como penalidades y sanciones, y en último caso resolución del contrato."]
[null,"Riesgo arqueológico",null,"Hallazgos de restos arqueológicos que puedan generar la interrupción del normal desarrollo de las obras de acuerdo a los plazos establecidos en el contrato o sobre costos en la ejecución de las mismas."]
[null,"Riesgos vinculados al proceso de obtención de permisos y licencias",null,"Corresponde a los permisos y/o licencias que deben obtenerse antes de iniciar la etapa de ejecución y que podrían generar atrasos si no se obtienen en los plazos requeridos. "]
[null,"Riesgo de infraestructura existente transferida",null,"Es el riesgo existente en  la infraestructura  ya construida y que se transfiere como parte de la obra o proyecto. Esto lleva implícito costos asociados de inversión  para las mejoras necesarias o reparación de daños no considerados inicialmente sobre dichas obras, y que serán necesarias de realizar para alcanzar el óptimo funcionamiento y desarrollo del proyecto."]
[null,"Riesgo por inversiones adicionales",null,"Cualquier obra adicional no contemplada en el presupuesto y diseño original, derivado de condiciones físicas no identificadas previamente o por cambios en los objetivos, cobertura, necesidades y condiciones de la obra."]
[null,"Riesgo de financiamiento",null,"El riesgo de financiamiento consiste en la imposibilidad de negociación y firma de un contrato de crédito, aporte en el capital social, aprobación de presupuesto o ampliación del mismo, o afectación en la colocación de bonos, recursos necesarios para el financiamiento del proyecto en el plazo previsto."]
[null,"Riesgo de tasa de interés",null,"Variaciones en el tipo de interés al cual está referenciado el financiamiento. En particular, en la fase de construcción de una infraestructura, un incremento en el tipo de interés redundará en mayores necesidades de financiamiento y por tanto en un sobre costo de construcción."]
[null,"Riesgo de ingresos ",null,"El riesgo de ingreso corresponde a la pérdida de estabilidad y previsibilidad de los flujos de caja del proyecto para cubrir el servicio de la deuda.\nSe parte de la premisa del mecanismo de pago o ingreso que se configure en el proceso de estructuración del proyecto, donde se pueden generar distintos escenarios en cuanto a los ingresos a percibir por el privado o la entidad pública durante la fase de explotación de la infraestructura, sea por tarifa, pago por disponibilidad y aportes directos del Estado, entre otros.\nNo obstante, el riesgo de ingreso puede ser positivo, generando flujos superiores a los previstos, por lo que contractualmente debe velarse que se establezca la coparticipación o retribución al Estado ante estas situaciones, cuando  la inversión corresponde a un privado."]
[null,"Riesgo de subestimación de costos de mantenimiento ",null,"Estos riesgos están asociados a una inadecuada planificación y estimación de las intervenciones en mantenimiento requeridas por los diferentes componentes del proyecto."]
[null,"Riesgo por terminación anticipada del contrato ",null,"La terminación anticipada se subdivide en tres tipos de riesgo.\ni. Riesgo de terminación anticipada por incumplimiento de la Administración o resolución unilateral de éste: Este riesgo es asumido por la Administración, el privado tiene derecho a una indemnización el cual está regulado contractualmente, con base en el derecho.\nii. Riesgo de terminación anticipada por incumplimiento del privado: El riesgo de incumplimiento de las obligaciones contractuales está totalmente transferido al privado, ya que aparte de la aplicación de penalidades y sanciones, llevaría en su extremo a la terminación del contrato.\nSin embargo, se debe tener en cuenta que, independientemente de su origen, la ocurrencia de este evento siempre impactará directamente a la Administración ya que debe hacer frente a las demoras, y a los costos por reducción de la eficiencia, al no contar  con la infraestructura en las condiciones y plazos esperados; a la re-licitación del proyecto y al costo social relacionado con la prestación de los servicios públicos asociados.\nAdicionalmente, este riesgo impacta en los financistas del proyecto (por la posible insuficiencia de la liquidez, para hacer frente a los costos de ruptura de los contratos de financiamiento con sus acreedores permitidos), ya que esta circunstancia influye en las posibilidades del proyecto de obtener financiamiento en los mercados.\niii. Terminación anticipada por causas de fuerza mayor, caso en el que se aplicarán las reglas explicadas en el apartado correspondiente a este riesgo."]
[null,"Riesgo de tipo de cambio ",null,"El riesgo cambiario comprenderá cualquier potencial pérdida derivada de la exposición a variaciones en la tasa de cambio entre dos monedas, para cualquier etapa del proyecto en generación de sobre costos para el mismo."]
[null,"Riesgos de fuerza mayor ",null,"Los riesgos de fuerza mayor son definidos como eventos que están fuera del control de las partes, y su ocurrencia otorga el derecho de solicitar la suspensión de las obligaciones estipuladas en el contrato.\nLos eventos de fuerza mayor, que causan demoras, pueden a menudo ser resueltos asignando los costos entre las partes. Eventos graves de fuerza mayor pueden conducir a la interrupción de la ejecución del proyecto.\nRiesgos de Fuerza Mayor Asegurables: Éstos se refieren al impacto adverso sobre la ejecución u operación del proyecto, que tendrían los fenómenos naturales que superan los umbrales de excedencia analizados en la fase de preinversión, en la etapa de diseño y/o carteles de licitación. Normalmente este tipo de riesgos de fuerza mayor son asegurables.\nRiesgo de Fuerza Mayor no asegurables: Se refieren de manera exclusiva al daño emergente derivado de actos de terrorismo, guerras, pandemias o eventos extraordinarios que alteren el orden público.\nSólo si estos riesgos son acordados como tales contractualmente, estarán dentro de la categoría de riesgos de fuerza mayor y en los contratos se establecerá su mecanismo de cobertura. \nLas consecuencias de eventos de fuerza mayor no asegurables que impliquen pagos al inversionista privado, tales como terminaciones anticipadas de los contratos, no podrán ser pagados a través del Fondo de Contingencias."]
[null,"Riesgos regulatorios o normativos ",null,"Corresponde a modificaciones normativas pertinentes que sean de aplicación al proyecto en cualquiera de sus etapas, pudiendo estas modificaciones generar un impacto en los costos o en los plazos de la obra."]
[null,"Riesgo político / riesgo de impago ",null,"Este riesgo corresponde a la exposición por diferentes medidas o políticas que pueda adoptar el Estado, en relación con impedir los ingresos tarifarios o cambios en los compromisos que la Administración contrajo, o la cancelación temporal o definitiva del proyecto."]
[null,"Riesgo de inflación ",null,"Durante la etapa de construcción el principal efecto de la inflación recae sobre los precios de los insumos, y eventualmente sobre el costo de la mano de obra, es decir, puede generar un sobre costo en el proyecto."]
[null,"Riesgo a la integridad pública",null,"El Riesgo a la integridad pública parte de elementos como corrupción, sobornos, tráfico de influencias, los cuales deben ser valorados en los diferentes proyectos. nivel de oposición pública en contra del proyecto, huelgas, revueltas o conmoción civil, vandalismo."]
[null,"Riesgo de Operación",null,"El riesgo de operación se refiere a que el proyecto pueda sufrir una afectación en la calidad del bien o servicio que se brinda a los usuarios, o que el proyecto incurra en costos operativos mayores de los previstos. Cualquiera de estos puede resultar en una reducción de los flujos de efectivo proyectados o en un incumplimiento de los estándares definidos."]
[null,"Riesgo de Información",null,"El riesgo de información nace de la no disponibilidad en tiempo y forma, total o parcial, de la información requerida por alguna de las partes involucradas en el proyecto, o que la misma este alterada, sea falsa, o insuficiente en los términos y plazos acordados contractualmente o por solicitud extraordinaria."]
[null,"Riesgo de Obsolescencia ",null,"Es el riesgo  del bien o servicio debido a cambios en las variantes de vida útil, eficiencia, innovación o tecnología."]
[null,"Riesgos Tecnológicos",null,"Este se encuentra relacionado con no contar con la tecnología requerida para llevar a cabo el proyecto, seguridad cibernética y respuesta ante incidentes, ausencia o problemas relacionados al proveedor de tecnología y de terceros, de administración de datos u operaciones de tecnología."]

{"sheet":"XLRisk","index":16,"n_rows":11,"n_cols":8,"rows_kept":11,"cut":false,"hidden":false,"merged":[]}
["Simulation Settings",null,null,"Simulation Inputs",null,null,"Simulation Outputs"]
["Seed",0]
["Update Screen",false,null,"Range","Formula",null,"Range","Name"]
["Iterations",10000,null,"MGR!$R$6","IF((OR(SUM(Tabla2[Costo Esperado])>0,SUM(Tabla12[Costo Esperado])>0,SUM(Tabla25[Costo Esperado])>0,SUM(Tabla24[Costo Esperado])>0,SUM(Tabla246[Costo Esperado])>0,SUM(Tabla2467[Costo Esperado])>0,SUM(Tabla248[Costo Esperado])>0,SUM(Tabla249[Costo Esperado])>0,SUM(Tabla24910[Costo Esperado])>0)),\"ELIMINAR\",IF(P6>0,RiskTriang(P6*0.75,P6,P6*1.25),\"ELIMINAR\"))",null,{"$f":"[4]!AddressWithSheet(Resultados!$D$4)","v":"Resultados!$D$4"},"Costo Total Esperado"]
["Latin Hypercube",true]
["Calculate data dables during simulation",true]
[]
[]
[]
["Macro to run before each iteration"]
["Macro to run after each iteration"]